{"text_format":"1","workbook":"xlsx","n_sheets":2,"sheets":["REGISTRO DE CONTRATOS","LISTAS"],"not_rendered":{"charts":0,"images":1,"macros":1,"external_links":2,"defined_names":36,"comments":0,"pivot_tables":0},"unopened":[],"bounds":{"document_bytes":16777216,"sheet_cells":100000,"rows_first":2000,"rows_last":500,"rows_between":2000,"halvings":0,"cell_chars":16384,"cell_head_chars":4096},"cells_cut":0,"cells_raw":0,"read":"whole","date_system":"1900"}

{"sheet":"REGISTRO DE CONTRATOS","index":0,"n_rows":506,"n_cols":25,"rows_kept":506,"cut":false,"hidden":false,"merged":[[2,0,2,3],[2,4,2,7],[2,15,2,22],[2,10,2,13],[2,8,2,9]]}
["                                                            "]
[]
["EMPRESA DE SERVICIO PÚBLICO DE TRANSPORTE TERRESTRE AUTOMOTOR DE PASAJEROS POR CARRETERA",null,null,null,"EMPRESA DE SERVICIO PÚBLICO DE TRANSPORTE TERRESTRE AUTOMOTOR ESPECIAL",null,null,null,"CONTRATO",null,"DESCRIPCIÓN DE LA RUTA",null,null,null,"IDENTIFICACIÓN DEL VEHÍCULO","TERMINAL DE TRANSPORTES AL QUE REPORTA POR EL PASO DE LA RUTA"]
["NOMBRE - RAZÓN SOCIAL","SIGLA","NIT","CORREO ELECTRÓNICO","NOMBRE - RAZÓN SOCIAL","SIGLA","NIT","CORREO ELECTRÓNICO","FECHA DE INICIO DEL CONTRATO","FECHA DE FINALIZACIÓN DEL CONTRATO","DEPARTAMENTO ORIGEN","CIUDAD O MUNICIPIO ORIGEN","DEPARTAMENTO DESTINO","CIUDAD O MUNICIPIO DESTINO","PLACA","TERMINAL DE TRANSPORTE (1)","TERMINAL DE TRANSPORTE (2)","TERMINAL DE TRANSPORTE (3)","TERMINAL DE TRANSPORTE (4)","TERMINAL DE TRANSPORTE (5)","TERMINAL DE TRANSPORTE (6)","TERMINAL DE TRANSPORTE (7)","TERMINAL DE TRANSPORTE (8)","VALIDA CORREO ELECTRÓNICO\nCONTRATANTE","VALIDA CORREO ELECTRÓNICO\nCONTRATISTA"]
["Por favor ingrese en nombre de la empresa contratante.","Por favor ingrese la sigla de la empresa contratante.","Por favor ingrese el NIT de la empresa contratante sin dígito de verificación y sin separadores (puntos, comas).","Por favor ingrese el correo electrónico de contacto de la empresa contratante. El campo solo acepta una dirección de correo electrónico.","Por favor ingrese en nombre de la empresa contratista.","Por favor ingrese la sigla de la empresa contratista.","Por favor ingrese el NIT de la empresa contratista sin dígito de verificación y sin separadores (puntos, comas).","Por favor ingrese el correo electrónico de contacto de la empresa contratista.  El campo solo acepta una dirección de correo electrónico.","Por favor ingrese la fecha de inicio del contrato entre la empresa de servicio de transporte público terrestre de pasajeros y la empresa de transporte especial de pasajeros en formato dd/mm/aaaa.","Por favor ingrese la fecha de finalización del contrato entre la empresa de servicio de transporte público terrestre de pasajeros y la empresa de transporte especial de pasajeros  en formato dd/mm/aaaa.","Por favor ingrese el departamento origen de la ruta.","Por favor ingrese el municipio o ciudad origen de la ruta.","Por favor ingrese el departamento destino de la ruta.","Por favor ingrese el municipio o ciudad destino de la ruta.","Por favor ingrese la placa del vehículo que presta el servicio como contratista.","Por favor ingrese el nombre de la terminal de transporte por la que transita (sin repetir)","Por favor ingrese el nombre de la terminal de transporte por la que transita (sin repetir)","Por favor ingrese el nombre de la terminal de transporte por la que transita (sin repetir)","Por favor ingrese el nombre de la terminal de transporte por la que transita (sin repetir)","Por favor ingrese el nombre de la terminal de transporte por la que transita (sin repetir)","Por favor ingrese el nombre de la terminal de transporte por la que transita (sin repetir)","Por favor ingrese el nombre de la terminal de transporte por la que transita (sin repetir)","Por favor ingrese el nombre de la terminal de transporte por la que transita (sin repetir)","Campo para realizar la validación del formato del correo electrónico de la empresa contratante.","Campo para realizar la validación del formato del correo electrónico de la empresa contratista."]
[null,null,null,null,null,null,null,null,null,null,null,null,null,null,null,null,null,null,null,null,null,null,null,{"$f":"validaEmail(D6)","v":false},{"$f":"validaEmail(H6)","v":false}]
[null,null,null,null,null,null,null,null,null,null,null,null,null,null,null,null,null,null,null,null,null,null,null,{"$f":"validaEmail(D7)","v":false},{"$f":"validaEmail(H7)","v":false}]
[null,null,null,null,null,null,null,null,null,null,null,null,null,null,null,null,null,null,null,null,null,null,null,{"$f":"validaEmail(D8)","v":false},{"$f":"validaEmail(H8)","v":false}]
[null,null,null,null,null,null,null,null,null,null,null,null,null,null,null,null,null,null,null,null,null,null,null,{"$f":"validaEmail(D9)","v":false},{"$f":"validaEmail(H9)","v":false}]
[null,null,null,null,null,null,null,null,null,null,null,null,null,null,null,null,null,null,null,null,null,null,null,{"$f":"validaEmail(D10)","v":false},{"$f":"validaEmail(H10)","v":false}]
[null,null,null,null,null,null,null,null,null,null,null,null,null,null,null,null,null,null,null,null,null,null,null,{"$f":"validaEmail(D11)","v":false},{"$f":"validaEmail(H11)","v":false}]
[null,null,null,null,null,null,null,null,null,null,null,null,null,null,null,null,null,null,null,null,null,null,null,{"$f":"validaEmail(D12)","v":false},{"$f":"validaEmail(H12)","v":false}]
[null,null,null,null,null,null,null,null,null,null,null,null,null,null,null,null,null,null,null,null,null,null,null,{"$f":"validaEmail(D13)","v":false},{"$f":"validaEmail(H13)","v":false}]
[null,null,null,null,null,null,null,null,null,null,null,null,null,null,null,null,null,null,null,null,null,null,null,{"$f":"validaEmail(D14)","v":false},{"$f":"validaEmail(H14)","v":false}]
[null,null,null,null,null,null,null,null,null,null,null,null,null,null,null,null,null,null,null,null,null,null,null,{"$f":"validaEmail(D15)","v":false},{"$f":"validaEmail(H15)","v":false}]
[null,null,null,null,null,null,null,null,null,null,null,null,null,null,null,null,null,null,null,null,null,null,null,{"$f":"validaEmail(D16)","v":false},{"$f":"validaEmail(H16)","v":false}]
[null,null,null,null,null,null,null,null,null,null,null,null,null,null,null,null,null,null,null,null,null,null,null,{"$f":"validaEmail(D17)","v":false},{"$f":"validaEmail(H17)","v":false}]
[null,null,null,null,null,null,null,null,null,null,null,null,null,null,null,null,null,null,null,null,null,null,null,{"$f":"validaEmail(D18)","v":false},{"$f":"validaEmail(H18)","v":false}]
[null,null,null,null,null,null,null,null,null,null,null,null,null,null,null,null,null,null,null,null,null,null,null,{"$f":"validaEmail(D19)","v":false},{"$f":"validaEmail(H19)","v":false}]
[null,null,null,null,null,null,null,null,null,null,null,null,null,null,null,null,null,null,null,null,null,null,null,{"$f":"validaEmail(D20)","v":false},{"$f":"validaEmail(H20)","v":false}]
[null,null,null,null,null,null,null,null,null,null,null,null,null,null,null,null,null,null,null,null,null,null,null,{"$f":"validaEmail(D21)","v":false},{"$f":"validaEmail(H21)","v":false}]
[null,null,null,null,null,null,null,null,null,null,null,null,null,null,null,null,null,null,null,null,null,null,null,{"$f":"validaEmail(D22)","v":false},{"$f":"validaEmail(H22)","v":false}]
[null,null,null,null,null,null,null,null,null,null,null,null,null,null,null,null,null,null,null,null,null,null,null,{"$f":"validaEmail(D23)","v":false},{"$f":"validaEmail(H23)","v":false}]
[null,null,null,null,null,null,null,null,null,null,null,null,null,null,null,null,null,null,null,null,null,null,null,{"$f":"validaEmail(D24)","v":false},{"$f":"validaEmail(H24)","v":false}]
[null,null,null,null,null,null,null,null,null,null,null,null,null,null,null,null,null,null,null,null,null,null,null,{"$f":"validaEmail(D25)","v":false},{"$f":"validaEmail(H25)","v":false}]
[null,null,null,null,null,null,null,null,null,null,null,null,null,null,null,null,null,null,null,null,null,null,null,{"$f":"validaEmail(D26)","v":false},{"$f":"validaEmail(H26)","v":false}]
[null,null,null,null,null,null,null,null,null,null,null,null,null,null,null,null,null,null,null,null,null,null,null,{"$f":"validaEmail(D27)","v":false},{"$f":"validaEmail(H27)","v":false}]
[null,null,null,null,null,null,null,null,null,null,null,null,null,null,null,null,null,null,null,null,null,null,null,{"$f":"validaEmail(D28)","v":false},{"$f":"validaEmail(H28)","v":false}]
[null,null,null,null,null,null,null,null,null,null,null,null,null,null,null,null,null,null,null,null,null,null,null,{"$f":"validaEmail(D29)","v":false},{"$f":"validaEmail(H29)","v":false}]
[null,null,null,null,null,null,null,null,null,null,null,null,null,null,null,null,null,null,null,null,null,null,null,{"$f":"validaEmail(D30)","v":false},{"$f":"validaEmail(H30)","v":false}]
[null,null,null,null,null,null,null,null,null,null,null,null,null,null,null,null,null,null,null,null,null,null,null,{"$f":"validaEmail(D31)","v":false},{"$f":"validaEmail(H31)","v":false}]
[null,null,null,null,null,null,null,null,null,null,null,null,null,null,null,null,null,null,null,null,null,null,null,{"$f":"validaEmail(D32)","v":false},{"$f":"validaEmail(H32)","v":false}]
[null,null,null,null,null,null,null,null,null,null,null,null,null,null,null,null,null,null,null,null,null,null,null,{"$f":"validaEmail(D33)","v":false},{"$f":"validaEmail(H33)","v":false}]
[null,null,null,null,null,null,null,null,null,null,null,null,null,null,null,null,null,null,null,null,null,null,null,{"$f":"validaEmail(D34)","v":false},{"$f":"validaEmail(H34)","v":false}]
[null,null,null,null,null,null,null,null,null,null,null,null,null,null,null,null,null,null,null,null,null,null,null,{"$f":"validaEmail(D35)","v":false},{"$f":"validaEmail(H35)","v":false}]
[null,null,null,null,null,null,null,null,null,null,null,null,null,null,null,null,null,null,null,null,null,null,null,{"$f":"validaEmail(D36)","v":false},{"$f":"validaEmail(H36)","v":false}]
[null,null,null,null,null,null,null,null,null,null,null,null,null,null,null,null,null,null,null,null,null,null,null,{"$f":"validaEmail(D37)","v":false},{"$f":"validaEmail(H37)","v":false}]
[null,null,null,null,null,null,null,null,null,null,null,null,null,null,null,null,null,null,null,null,null,null,null,{"$f":"validaEmail(D38)","v":false},{"$f":"validaEmail(H38)","v":false}]
[null,null,null,null,null,null,null,null,null,null,null,null,null,null,null,null,null,null,null,null,null,null,null,{"$f":"validaEmail(D39)","v":false},{"$f":"validaEmail(H39)","v":false}]
[null,null,null,null,null,null,null,null,null,null,null,null,null,null,null,null,null,null,null,null,null,null,null,{"$f":"validaEmail(D40)","v":false},{"$f":"validaEmail(H40)","v":false}]
[null,null,null,null,null,null,null,null,null,null,null,null,null,null,null,null,null,null,null,null,null,null,null,{"$f":"validaEmail(D41)","v":false},{"$f":"validaEmail(H41)","v":false}]
[null,null,null,null,null,null,null,null,null,null,null,null,null,null,null,null,null,null,null,null,null,null,null,{"$f":"validaEmail(D42)","v":false},{"$f":"validaEmail(H42)","v":false}]
[null,null,null,null,null,null,null,null,null,null,null,null,null,null,null,null,null,null,null,null,null,null,null,{"$f":"validaEmail(D43)","v":false},{"$f":"validaEmail(H43)","v":false}]
[null,null,null,null,null,null,null,null,null,null,null,null,null,null,null,null,null,null,null,null,null,null,null,{"$f":"validaEmail(D44)","v":false},{"$f":"validaEmail(H44)","v":false}]
[null,null,null,null,null,null,null,null,null,null,null,null,null,null,null,null,null,null,null,null,null,null,null,{"$f":"validaEmail(D45)","v":false},{"$f":"validaEmail(H45)","v":false}]
[null,null,null,null,null,null,null,null,null,null,null,null,null,null,null,null,null,null,null,null,null,null,null,{"$f":"validaEmail(D46)","v":false},{"$f":"validaEmail(H46)","v":false}]
[null,null,null,null,null,null,null,null,null,null,null,null,null,null,null,null,null,null,null,null,null,null,null,{"$f":"validaEmail(D47)","v":false},{"$f":"validaEmail(H47)","v":false}]
[null,null,null,null,null,null,null,null,null,null,null,null,null,null,null,null,null,null,null,null,null,null,null,{"$f":"validaEmail(D48)","v":false},{"$f":"validaEmail(H48)","v":false}]
[null,null,null,null,null,null,null,null,null,null,null,null,null,null,null,null,null,null,null,null,null,null,null,{"$f":"validaEmail(D49)","v":false},{"$f":"validaEmail(H49)","v":false}]
[null,null,null,null,null,null,null,null,null,null,null,null,null,null,null,null,null,null,null,null,null,null,null,{"$f":"validaEmail(D50)","v":false},{"$f":"validaEmail(H50)","v":false}]
[null,null,null,null,null,null,null,null,null,null,null,null,null,null,null,null,null,null,null,null,null,null,null,{"$f":"validaEmail(D51)","v":false},{"$f":"validaEmail(H51)","v":false}]
[null,null,null,null,null,null,null,null,null,null,null,null,null,null,null,null,null,null,null,null,null,null,null,{"$f":"validaEmail(D52)","v":false},{"$f":"validaEmail(H52)","v":false}]
[null,null,null,null,null,null,null,null,null,null,null,null,null,null,null,null,null,null,null,null,null,null,null,{"$f":"validaEmail(D53)","v":false},{"$f":"validaEmail(H53)","v":false}]
[null,null,null,null,null,null,null,null,null,null,null,null,null,null,null,null,null,null,null,null,null,null,null,{"$f":"validaEmail(D54)","v":false},{"$f":"validaEmail(H54)","v":false}]
[null,null,null,null,null,null,null,null,null,null,null,null,null,null,null,null,null,null,null,null,null,null,null,{"$f":"validaEmail(D55)","v":false},{"$f":"validaEmail(H55)","v":false}]
[null,null,null,null,null,null,null,null,null,null,null,null,null,null,null,null,null,null,null,null,null,null,null,{"$f":"validaEmail(D56)","v":false},{"$f":"validaEmail(H56)","v":false}]
[null,null,null,null,null,null,null,null,null,null,null,null,null,null,null,null,null,null,null,null,null,null,null,{"$f":"validaEmail(D57)","v":false},{"$f":"validaEmail(H57)","v":false}]
[null,null,null,null,null,null,null,null,null,null,null,null,null,null,null,null,null,null,null,null,null,null,null,{"$f":"validaEmail(D58)","v":false},{"$f":"validaEmail(H58)","v":false}]
[null,null,null,null,null,null,null,null,null,null,null,null,null,null,null,null,null,null,null,null,null,null,null,{"$f":"validaEmail(D59)","v":false},{"$f":"validaEmail(H59)","v":false}]
[null,null,null,null,null,null,null,null,null,null,null,null,null,null,null,null,null,null,null,null,null,null,null,{"$f":"validaEmail(D60)","v":false},{"$f":"validaEmail(H60)","v":false}]
[null,null,null,null,null,null,null,null,null,null,null,null,null,null,null,null,null,null,null,null,null,null,null,{"$f":"validaEmail(D61)","v":false},{"$f":"validaEmail(H61)","v":false}]
[null,null,null,null,null,null,null,null,null,null,null,null,null,null,null,null,null,null,null,null,null,null,null,{"$f":"validaEmail(D62)","v":false},{"$f":"validaEmail(H62)","v":false}]
[null,null,null,null,null,null,null,null,null,null,null,null,null,null,null,null,null,null,null,null,null,null,null,{"$f":"validaEmail(D63)","v":false},{"$f":"validaEmail(H63)","v":false}]
[null,null,null,null,null,null,null,null,null,null,null,null,null,null,null,null,null,null,null,null,null,null,null,{"$f":"validaEmail(D64)","v":false},{"$f":"validaEmail(H64)","v":false}]
[null,null,null,null,null,null,null,null,null,null,null,null,null,null,null,null,null,null,null,null,null,null,null,{"$f":"validaEmail(D65)","v":false},{"$f":"validaEmail(H65)","v":false}]
[null,null,null,null,null,null,null,null,null,null,null,null,null,null,null,null,null,null,null,null,null,null,null,{"$f":"validaEmail(D66)","v":false},{"$f":"validaEmail(H66)","v":false}]
[null,null,null,null,null,null,null,null,null,null,null,null,null,null,null,null,null,null,null,null,null,null,null,{"$f":"validaEmail(D67)","v":false},{"$f":"validaEmail(H67)","v":false}]
[null,null,null,null,null,null,null,null,null,null,null,null,null,null,null,null,null,null,null,null,null,null,null,{"$f":"validaEmail(D68)","v":false},{"$f":"validaEmail(H68)","v":false}]
[null,null,null,null,null,null,null,null,null,null,null,null,null,null,null,null,null,null,null,null,null,null,null,{"$f":"validaEmail(D69)","v":false},{"$f":"validaEmail(H69)","v":false}]
[null,null,null,null,null,null,null,null,null,null,null,null,null,null,null,null,null,null,null,null,null,null,null,{"$f":"validaEmail(D70)","v":false},{"$f":"validaEmail(H70)","v":false}]
[null,null,null,null,null,null,null,null,null,null,null,null,null,null,null,null,null,null,null,null,null,null,null,{"$f":"validaEmail(D71)","v":false},{"$f":"validaEmail(H71)","v":false}]
[null,null,null,null,null,null,null,null,null,null,null,null,null,null,null,null,null,null,null,null,null,null,null,{"$f":"validaEmail(D72)","v":false},{"$f":"validaEmail(H72)","v":false}]
[null,null,null,null,null,null,null,null,null,null,null,null,null,null,null,null,null,null,null,null,null,null,null,{"$f":"validaEmail(D73)","v":false},{"$f":"validaEmail(H73)","v":false}]
[null,null,null,null,null,null,null,null,null,null,null,null,null,null,null,null,null,null,null,null,null,null,null,{"$f":"validaEmail(D74)","v":false},{"$f":"validaEmail(H74)","v":false}]
[null,null,null,null,null,null,null,null,null,null,null,null,null,null,null,null,null,null,null,null,null,null,null,{"$f":"validaEmail(D75)","v":false},{"$f":"validaEmail(H75)","v":false}]
[null,null,null,null,null,null,null,null,null,null,null,null,null,null,null,null,null,null,null,null,null,null,null,{"$f":"validaEmail(D76)","v":false},{"$f":"validaEmail(H76)","v":false}]
[null,null,null,null,null,null,null,null,null,null,null,null,null,null,null,null,null,null,null,null,null,null,null,{"$f":"validaEmail(D77)","v":false},{"$f":"validaEmail(H77)","v":false}]
[null,null,null,null,null,null,null,null,null,null,null,null,null,null,null,null,null,null,null,null,null,null,null,{"$f":"validaEmail(D78)","v":false},{"$f":"validaEmail(H78)","v":false}]
[null,null,null,null,null,null,null,null,null,null,null,null,null,null,null,null,null,null,null,null,null,null,null,{"$f":"validaEmail(D79)","v":false},{"$f":"validaEmail(H79)","v":false}]
[null,null,null,null,null,null,null,null,null,null,null,null,null,null,null,null,null,null,null,null,null,null,null,{"$f":"validaEmail(D80)","v":false},{"$f":"validaEmail(H80)","v":false}]
[null,null,null,null,null,null,null,null,null,null,null,null,null,null,null,null,null,null,null,null,null,null,null,{"$f":"validaEmail(D81)","v":false},{"$f":"validaEmail(H81)","v":false}]
[null,null,null,null,null,null,null,null,null,null,null,null,null,null,null,null,null,null,null,null,null,null,null,{"$f":"validaEmail(D82)","v":false},{"$f":"validaEmail(H82)","v":false}]
[null,null,null,null,null,null,null,null,null,null,null,null,null,null,null,null,null,null,null,null,null,null,null,{"$f":"validaEmail(D83)","v":false},{"$f":"validaEmail(H83)","v":false}]
[null,null,null,null,null,null,null,null,null,null,null,null,null,null,null,null,null,null,null,null,null,null,null,{"$f":"validaEmail(D84)","v":false},{"$f":"validaEmail(H84)","v":false}]
[null,null,null,null,null,null,null,null,null,null,null,null,null,null,null,null,null,null,null,null,null,null,null,{"$f":"validaEmail(D85)","v":false},{"$f":"validaEmail(H85)","v":false}]
[null,null,null,null,null,null,null,null,null,null,null,null,null,null,null,null,null,null,null,null,null,null,null,{"$f":"validaEmail(D86)","v":false},{"$f":"validaEmail(H86)","v":false}]
[null,null,null,null,null,null,null,null,null,null,null,null,null,null,null,null,null,null,null,null,null,null,null,{"$f":"validaEmail(D87)","v":false},{"$f":"validaEmail(H87)","v":false}]
[null,null,null,null,null,null,null,null,null,null,null,null,null,null,null,null,null,null,null,null,null,null,null,{"$f":"validaEmail(D88)","v":false},{"$f":"validaEmail(H88)","v":false}]
[null,null,null,null,null,null,null,null,null,null,null,null,null,null,null,null,null,null,null,null,null,null,null,{"$f":"validaEmail(D89)","v":false},{"$f":"validaEmail(H89)","v":false}]
[null,null,null,null,null,null,null,null,null,null,null,null,null,null,null,null,null,null,null,null,null,null,null,{"$f":"validaEmail(D90)","v":false},{"$f":"validaEmail(H90)","v":false}]
[null,null,null,null,null,null,null,null,null,null,null,null,null,null,null,null,null,null,null,null,null,null,null,{"$f":"validaEmail(D91)","v":false},{"$f":"validaEmail(H91)","v":false}]
[null,null,null,null,null,null,null,null,null,null,null,null,null,null,null,null,null,null,null,null,null,null,null,{"$f":"validaEmail(D92)","v":false},{"$f":"validaEmail(H92)","v":false}]
[null,null,null,null,null,null,null,null,null,null,null,null,null,null,null,null,null,null,null,null,null,null,null,{"$f":"validaEmail(D93)","v":false},{"$f":"validaEmail(H93)","v":false}]
[null,null,null,null,null,null,null,null,null,null,null,null,null,null,null,null,null,null,null,null,null,null,null,{"$f":"validaEmail(D94)","v":false},{"$f":"validaEmail(H94)","v":false}]
[null,null,null,null,null,null,null,null,null,null,null,null,null,null,null,null,null,null,null,null,null,null,null,{"$f":"validaEmail(D95)","v":false},{"$f":"validaEmail(H95)","v":false}]
[null,null,null,null,null,null,null,null,null,null,null,null,null,null,null,null,null,null,null,null,null,null,null,{"$f":"validaEmail(D96)","v":false},{"$f":"validaEmail(H96)","v":false}]
[null,null,null,null,null,null,null,null,null,null,null,null,null,null,null,null,null,null,null,null,null,null,null,{"$f":"validaEmail(D97)","v":false},{"$f":"validaEmail(H97)","v":false}]
[null,null,null,null,null,null,null,null,null,null,null,null,null,null,null,null,null,null,null,null,null,null,null,{"$f":"validaEmail(D98)","v":false},{"$f":"validaEmail(H98)","v":false}]
[null,null,null,null,null,null,null,null,null,null,null,null,null,null,null,null,null,null,null,null,null,null,null,{"$f":"validaEmail(D99)","v":false},{"$f":"validaEmail(H99)","v":false}]
[null,null,null,null,null,null,null,null,null,null,null,null,null,null,null,null,null,null,null,null,null,null,null,{"$f":"validaEmail(D100)","v":false},{"$f":"validaEmail(H100)","v":false}]
[null,null,null,null,null,null,null,null,null,null,null,null,null,null,null,null,null,null,null,null,null,null,null,{"$f":"validaEmail(D101)","v":false},{"$f":"validaEmail(H101)","v":false}]
[null,null,null,null,null,null,null,null,null,null,null,null,null,null,null,null,null,null,null,null,null,null,null,{"$f":"validaEmail(D102)","v":false},{"$f":"validaEmail(H102)","v":false}]
[null,null,null,null,null,null,null,null,null,null,null,null,null,null,null,null,null,null,null,null,null,null,null,{"$f":"validaEmail(D103)","v":false},{"$f":"validaEmail(H103)","v":false}]
[null,null,null,null,null,null,null,null,null,null,null,null,null,null,null,null,null,null,null,null,null,null,null,{"$f":"validaEmail(D104)","v":false},{"$f":"validaEmail(H104)","v":false}]
[null,null,null,null,null,null,null,null,null,null,null,null,null,null,null,null,null,null,null,null,null,null,null,{"$f":"validaEmail(D105)","v":false},{"$f":"validaEmail(H105)","v":false}]
[null,null,null,null,null,null,null,null,null,null,null,null,null,null,null,null,null,null,null,null,null,null,null,{"$f":"validaEmail(D106)","v":false},{"$f":"validaEmail(H106)","v":false}]
[null,null,null,null,null,null,null,null,null,null,null,null,null,null,null,null,null,null,null,null,null,null,null,{"$f":"validaEmail(D107)","v":false},{"$f":"validaEmail(H107)","v":false}]
[null,null,null,null,null,null,null,null,null,null,null,null,null,null,null,null,null,null,null,null,null,null,null,{"$f":"validaEmail(D108)","v":false},{"$f":"validaEmail(H108)","v":false}]
[null,null,null,null,null,null,null,null,null,null,null,null,null,null,null,null,null,null,null,null,null,null,null,{"$f":"validaEmail(D109)","v":false},{"$f":"validaEmail(H109)","v":false}]
[null,null,null,null,null,null,null,null,null,null,null,null,null,null,null,null,null,null,null,null,null,null,null,{"$f":"validaEmail(D110)","v":false},{"$f":"validaEmail(H110)","v":false}]
[null,null,null,null,null,null,null,null,null,null,null,null,null,null,null,null,null,null,null,null,null,null,null,{"$f":"validaEmail(D111)","v":false},{"$f":"validaEmail(H111)","v":false}]
[null,null,null,null,null,null,null,null,null,null,null,null,null,null,null,null,null,null,null,null,null,null,null,{"$f":"validaEmail(D112)","v":false},{"$f":"validaEmail(H112)","v":false}]
[null,null,null,null,null,null,null,null,null,null,null,null,null,null,null,null,null,null,null,null,null,null,null,{"$f":"validaEmail(D113)","v":false},{"$f":"validaEmail(H113)","v":false}]
[null,null,null,null,null,null,null,null,null,null,null,null,null,null,null,null,null,null,null,null,null,null,null,{"$f":"validaEmail(D114)","v":false},{"$f":"validaEmail(H114)","v":false}]
[null,null,null,null,null,null,null,null,null,null,null,null,null,null,null,null,null,null,null,null,null,null,null,{"$f":"validaEmail(D115)","v":false},{"$f":"validaEmail(H115)","v":false}]
[null,null,null,null,null,null,null,null,null,null,null,null,null,null,null,null,null,null,null,null,null,null,null,{"$f":"validaEmail(D116)","v":false},{"$f":"validaEmail(H116)","v":false}]
[null,null,null,null,null,null,null,null,null,null,null,null,null,null,null,null,null,null,null,null,null,null,null,{"$f":"validaEmail(D117)","v":false},{"$f":"validaEmail(H117)","v":false}]
[null,null,null,null,null,null,null,null,null,null,null,null,null,null,null,null,null,null,null,null,null,null,null,{"$f":"validaEmail(D118)","v":false},{"$f":"validaEmail(H118)","v":false}]
[null,null,null,null,null,null,null,null,null,null,null,null,null,null,null,null,null,null,null,null,null,null,null,{"$f":"validaEmail(D119)","v":false},{"$f":"validaEmail(H119)","v":false}]
[null,null,null,null,null,null,null,null,null,null,null,null,null,null,null,null,null,null,null,null,null,null,null,{"$f":"validaEmail(D120)","v":false},{"$f":"validaEmail(H120)","v":false}]
[null,null,null,null,null,null,null,null,null,null,null,null,null,null,null,null,null,null,null,null,null,null,null,{"$f":"validaEmail(D121)","v":false},{"$f":"validaEmail(H121)","v":false}]
[null,null,null,null,null,null,null,null,null,null,null,null,null,null,null,null,null,null,null,null,null,null,null,{"$f":"validaEmail(D122)","v":false},{"$f":"validaEmail(H122)","v":false}]
[null,null,null,null,null,null,null,null,null,null,null,null,null,null,null,null,null,null,null,null,null,null,null,{"$f":"validaEmail(D123)","v":false},{"$f":"validaEmail(H123)","v":false}]
[null,null,null,null,null,null,null,null,null,null,null,null,null,null,null,null,null,null,null,null,null,null,null,{"$f":"validaEmail(D124)","v":false},{"$f":"validaEmail(H124)","v":false}]
[null,null,null,null,null,null,null,null,null,null,null,null,null,null,null,null,null,null,null,null,null,null,null,{"$f":"validaEmail(D125)","v":false},{"$f":"validaEmail(H125)","v":false}]
[null,null,null,null,null,null,null,null,null,null,null,null,null,null,null,null,null,null,null,null,null,null,null,{"$f":"validaEmail(D126)","v":false},{"$f":"validaEmail(H126)","v":false}]
[null,null,null,null,null,null,null,null,null,null,null,null,null,null,null,null,null,null,null,null,null,null,null,{"$f":"validaEmail(D127)","v":false},{"$f":"validaEmail(H127)","v":false}]
[null,null,null,null,null,null,null,null,null,null,null,null,null,null,null,null,null,null,null,null,null,null,null,{"$f":"validaEmail(D128)","v":false},{"$f":"validaEmail(H128)","v":false}]
[null,null,null,null,null,null,null,null,null,null,null,null,null,null,null,null,null,null,null,null,null,null,null,{"$f":"validaEmail(D129)","v":false},{"$f":"validaEmail(H129)","v":false}]
[null,null,null,null,null,null,null,null,null,null,null,null,null,null,null,null,null,null,null,null,null,null,null,{"$f":"validaEmail(D130)","v":false},{"$f":"validaEmail(H130)","v":false}]
[null,null,null,null,null,null,null,null,null,null,null,null,null,null,null,null,null,null,null,null,null,null,null,{"$f":"validaEmail(D131)","v":false},{"$f":"validaEmail(H131)","v":false}]
[null,null,null,null,null,null,null,null,null,null,null,null,null,null,null,null,null,null,null,null,null,null,null,{"$f":"validaEmail(D132)","v":false},{"$f":"validaEmail(H132)","v":false}]
[null,null,null,null,null,null,null,null,null,null,null,null,null,null,null,null,null,null,null,null,null,null,null,{"$f":"validaEmail(D133)","v":false},{"$f":"validaEmail(H133)","v":false}]
[null,null,null,null,null,null,null,null,null,null,null,null,null,null,null,null,null,null,null,null,null,null,null,{"$f":"validaEmail(D134)","v":false},{"$f":"validaEmail(H134)","v":false}]
[null,null,null,null,null,null,null,null,null,null,null,null,null,null,null,null,null,null,null,null,null,null,null,{"$f":"validaEmail(D135)","v":false},{"$f":"validaEmail(H135)","v":false}]
[null,null,null,null,null,null,null,null,null,null,null,null,null,null,null,null,null,null,null,null,null,null,null,{"$f":"validaEmail(D136)","v":false},{"$f":"validaEmail(H136)","v":false}]
[null,null,null,null,null,null,null,null,null,null,null,null,null,null,null,null,null,null,null,null,null,null,null,{"$f":"validaEmail(D137)","v":false},{"$f":"validaEmail(H137)","v":false}]
[null,null,null,null,null,null,null,null,null,null,null,null,null,null,null,null,null,null,null,null,null,null,null,{"$f":"validaEmail(D138)","v":false},{"$f":"validaEmail(H138)","v":false}]
[null,null,null,null,null,null,null,null,null,null,null,null,null,null,null,null,null,null,null,null,null,null,null,{"$f":"validaEmail(D139)","v":false},{"$f":"validaEmail(H139)","v":false}]
[null,null,null,null,null,null,null,null,null,null,null,null,null,null,null,null,null,null,null,null,null,null,null,{"$f":"validaEmail(D140)","v":false},{"$f":"validaEmail(H140)","v":false}]
[null,null,null,null,null,null,null,null,null,null,null,null,null,null,null,null,null,null,null,null,null,null,null,{"$f":"validaEmail(D141)","v":false},{"$f":"validaEmail(H141)","v":false}]
[null,null,null,null,null,null,null,null,null,null,null,null,null,null,null,null,null,null,null,null,null,null,null,{"$f":"validaEmail(D142)","v":false},{"$f":"validaEmail(H142)","v":false}]
[null,null,null,null,null,null,null,null,null,null,null,null,null,null,null,null,null,null,null,null,null,null,null,{"$f":"validaEmail(D143)","v":false},{"$f":"validaEmail(H143)","v":false}]
[null,null,null,null,null,null,null,null,null,null,null,null,null,null,null,null,null,null,null,null,null,null,null,{"$f":"validaEmail(D144)","v":false},{"$f":"validaEmail(H144)","v":false}]
[null,null,null,null,null,null,null,null,null,null,null,null,null,null,null,null,null,null,null,null,null,null,null,{"$f":"validaEmail(D145)","v":false},{"$f":"validaEmail(H145)","v":false}]
[null,null,null,null,null,null,null,null,null,null,null,null,null,null,null,null,null,null,null,null,null,null,null,{"$f":"validaEmail(D146)","v":false},{"$f":"validaEmail(H146)","v":false}]
[null,null,null,null,null,null,null,null,null,null,null,null,null,null,null,null,null,null,null,null,null,null,null,{"$f":"validaEmail(D147)","v":false},{"$f":"validaEmail(H147)","v":false}]
[null,null,null,null,null,null,null,null,null,null,null,null,null,null,null,null,null,null,null,null,null,null,null,{"$f":"validaEmail(D148)","v":false},{"$f":"validaEmail(H148)","v":false}]
[null,null,null,null,null,null,null,null,null,null,null,null,null,null,null,null,null,null,null,null,null,null,null,{"$f":"validaEmail(D149)","v":false},{"$f":"validaEmail(H149)","v":false}]
[null,null,null,null,null,null,null,null,null,null,null,null,null,null,null,null,null,null,null,null,null,null,null,{"$f":"validaEmail(D150)","v":false},{"$f":"validaEmail(H150)","v":false}]
[null,null,null,null,null,null,null,null,null,null,null,null,null,null,null,null,null,null,null,null,null,null,null,{"$f":"validaEmail(D151)","v":false},{"$f":"validaEmail(H151)","v":false}]
[null,null,null,null,null,null,null,null,null,null,null,null,null,null,null,null,null,null,null,null,null,null,null,{"$f":"validaEmail(D152)","v":false},{"$f":"validaEmail(H152)","v":false}]
[null,null,null,null,null,null,null,null,null,null,null,null,null,null,null,null,null,null,null,null,null,null,null,{"$f":"validaEmail(D153)","v":false},{"$f":"validaEmail(H153)","v":false}]
[null,null,null,null,null,null,null,null,null,null,null,null,null,null,null,null,null,null,null,null,null,null,null,{"$f":"validaEmail(D154)","v":false},{"$f":"validaEmail(H154)","v":false}]
[null,null,null,null,null,null,null,null,null,null,null,null,null,null,null,null,null,null,null,null,null,null,null,{"$f":"validaEmail(D155)","v":false},{"$f":"validaEmail(H155)","v":false}]
[null,null,null,null,null,null,null,null,null,null,null,null,null,null,null,null,null,null,null,null,null,null,null,{"$f":"validaEmail(D156)","v":false},{"$f":"validaEmail(H156)","v":false}]
[null,null,null,null,null,null,null,null,null,null,null,null,null,null,null,null,null,null,null,null,null,null,null,{"$f":"validaEmail(D157)","v":false},{"$f":"validaEmail(H157)","v":false}]
[null,null,null,null,null,null,null,null,null,null,null,null,null,null,null,null,null,null,null,null,null,null,null,{"$f":"validaEmail(D158)","v":false},{"$f":"validaEmail(H158)","v":false}]
[null,null,null,null,null,null,null,null,null,null,null,null,null,null,null,null,null,null,null,null,null,null,null,{"$f":"validaEmail(D159)","v":false},{"$f":"validaEmail(H159)","v":false}]
[null,null,null,null,null,null,null,null,null,null,null,null,null,null,null,null,null,null,null,null,null,null,null,{"$f":"validaEmail(D160)","v":false},{"$f":"validaEmail(H160)","v":false}]
[null,null,null,null,null,null,null,null,null,null,null,null,null,null,null,null,null,null,null,null,null,null,null,{"$f":"validaEmail(D161)","v":false},{"$f":"validaEmail(H161)","v":false}]
[null,null,null,null,null,null,null,null,null,null,null,null,null,null,null,null,null,null,null,null,null,null,null,{"$f":"validaEmail(D162)","v":false},{"$f":"validaEmail(H162)","v":false}]
[null,null,null,null,null,null,null,null,null,null,null,null,null,null,null,null,null,null,null,null,null,null,null,{"$f":"validaEmail(D163)","v":false},{"$f":"validaEmail(H163)","v":false}]
[null,null,null,null,null,null,null,null,null,null,null,null,null,null,null,null,null,null,null,null,null,null,null,{"$f":"validaEmail(D164)","v":false},{"$f":"validaEmail(H164)","v":false}]
[null,null,null,null,null,null,null,null,null,null,null,null,null,null,null,null,null,null,null,null,null,null,null,{"$f":"validaEmail(D165)","v":false},{"$f":"validaEmail(H165)","v":false}]
[null,null,null,null,null,null,null,null,null,null,null,null,null,null,null,null,null,null,null,null,null,null,null,{"$f":"validaEmail(D166)","v":false},{"$f":"validaEmail(H166)","v":false}]
[null,null,null,null,null,null,null,null,null,null,null,null,null,null,null,null,null,null,null,null,null,null,null,{"$f":"validaEmail(D167)","v":false},{"$f":"validaEmail(H167)","v":false}]
[null,null,null,null,null,null,null,null,null,null,null,null,null,null,null,null,null,null,null,null,null,null,null,{"$f":"validaEmail(D168)","v":false},{"$f":"validaEmail(H168)","v":false}]
[null,null,null,null,null,null,null,null,null,null,null,null,null,null,null,null,null,null,null,null,null,null,null,{"$f":"validaEmail(D169)","v":false},{"$f":"validaEmail(H169)","v":false}]
[null,null,null,null,null,null,null,null,null,null,null,null,null,null,null,null,null,null,null,null,null,null,null,{"$f":"validaEmail(D170)","v":false},{"$f":"validaEmail(H170)","v":false}]
[null,null,null,null,null,null,null,null,null,null,null,null,null,null,null,null,null,null,null,null,null,null,null,{"$f":"validaEmail(D171)","v":false},{"$f":"validaEmail(H171)","v":false}]
[null,null,null,null,null,null,null,null,null,null,null,null,null,null,null,null,null,null,null,null,null,null,null,{"$f":"validaEmail(D172)","v":false},{"$f":"validaEmail(H172)","v":false}]
[null,null,null,null,null,null,null,null,null,null,null,null,null,null,null,null,null,null,null,null,null,null,null,{"$f":"validaEmail(D173)","v":false},{"$f":"validaEmail(H173)","v":false}]
[null,null,null,null,null,null,null,null,null,null,null,null,null,null,null,null,null,null,null,null,null,null,null,{"$f":"validaEmail(D174)","v":false},{"$f":"validaEmail(H174)","v":false}]
[null,null,null,null,null,null,null,null,null,null,null,null,null,null,null,null,null,null,null,null,null,null,null,{"$f":"validaEmail(D175)","v":false},{"$f":"validaEmail(H175)","v":false}]
[null,null,null,null,null,null,null,null,null,null,null,null,null,null,null,null,null,null,null,null,null,null,null,{"$f":"validaEmail(D176)","v":false},{"$f":"validaEmail(H176)","v":false}]
[null,null,null,null,null,null,null,null,null,null,null,null,null,null,null,null,null,null,null,null,null,null,null,{"$f":"validaEmail(D177)","v":false},{"$f":"validaEmail(H177)","v":false}]
[null,null,null,null,null,null,null,null,null,null,null,null,null,null,null,null,null,null,null,null,null,null,null,{"$f":"validaEmail(D178)","v":false},{"$f":"validaEmail(H178)","v":false}]
[null,null,null,null,null,null,null,null,null,null,null,null,null,null,null,null,null,null,null,null,null,null,null,{"$f":"validaEmail(D179)","v":false},{"$f":"validaEmail(H179)","v":false}]
[null,null,null,null,null,null,null,null,null,null,null,null,null,null,null,null,null,null,null,null,null,null,null,{"$f":"validaEmail(D180)","v":false},{"$f":"validaEmail(H180)","v":false}]
[null,null,null,null,null,null,null,null,null,null,null,null,null,null,null,null,null,null,null,null,null,null,null,{"$f":"validaEmail(D181)","v":false},{"$f":"validaEmail(H181)","v":false}]
[null,null,null,null,null,null,null,null,null,null,null,null,null,null,null,null,null,null,null,null,null,null,null,{"$f":"validaEmail(D182)","v":false},{"$f":"validaEmail(H182)","v":false}]
[null,null,null,null,null,null,null,null,null,null,null,null,null,null,null,null,null,null,null,null,null,null,null,{"$f":"validaEmail(D183)","v":false},{"$f":"validaEmail(H183)","v":false}]
[null,null,null,null,null,null,null,null,null,null,null,null,null,null,null,null,null,null,null,null,null,null,null,{"$f":"validaEmail(D184)","v":false},{"$f":"validaEmail(H184)","v":false}]
[null,null,null,null,null,null,null,null,null,null,null,null,null,null,null,null,null,null,null,null,null,null,null,{"$f":"validaEmail(D185)","v":false},{"$f":"validaEmail(H185)","v":false}]
[null,null,null,null,null,null,null,null,null,null,null,null,null,null,null,null,null,null,null,null,null,null,null,{"$f":"validaEmail(D186)","v":false},{"$f":"validaEmail(H186)","v":false}]
[null,null,null,null,null,null,null,null,null,null,null,null,null,null,null,null,null,null,null,null,null,null,null,{"$f":"validaEmail(D187)","v":false},{"$f":"validaEmail(H187)","v":false}]
[null,null,null,null,null,null,null,null,null,null,null,null,null,null,null,null,null,null,null,null,null,null,null,{"$f":"validaEmail(D188)","v":false},{"$f":"validaEmail(H188)","v":false}]
[null,null,null,null,null,null,null,null,null,null,null,null,null,null,null,null,null,null,null,null,null,null,null,{"$f":"validaEmail(D189)","v":false},{"$f":"validaEmail(H189)","v":false}]
[null,null,null,null,null,null,null,null,null,null,null,null,null,null,null,null,null,null,null,null,null,null,null,{"$f":"validaEmail(D190)","v":false},{"$f":"validaEmail(H190)","v":false}]
[null,null,null,null,null,null,null,null,null,null,null,null,null,null,null,null,null,null,null,null,null,null,null,{"$f":"validaEmail(D191)","v":false},{"$f":"validaEmail(H191)","v":false}]
[null,null,null,null,null,null,null,null,null,null,null,null,null,null,null,null,null,null,null,null,null,null,null,{"$f":"validaEmail(D192)","v":false},{"$f":"validaEmail(H192)","v":false}]
[null,null,null,null,null,null,null,null,null,null,null,null,null,null,null,null,null,null,null,null,null,null,null,{"$f":"validaEmail(D193)","v":false},{"$f":"validaEmail(H193)","v":false}]
[null,null,null,null,null,null,null,null,null,null,null,null,null,null,null,null,null,null,null,null,null,null,null,{"$f":"validaEmail(D194)","v":false},{"$f":"validaEmail(H194)","v":false}]
[null,null,null,null,null,null,null,null,null,null,null,null,null,null,null,null,null,null,null,null,null,null,null,{"$f":"validaEmail(D195)","v":false},{"$f":"validaEmail(H195)","v":false}]
[null,null,null,null,null,null,null,null,null,null,null,null,null,null,null,null,null,null,null,null,null,null,null,{"$f":"validaEmail(D196)","v":false},{"$f":"validaEmail(H196)","v":false}]
[null,null,null,null,null,null,null,null,null,null,null,null,null,null,null,null,null,null,null,null,null,null,null,{"$f":"validaEmail(D197)","v":false},{"$f":"validaEmail(H197)","v":false}]
[null,null,null,null,null,null,null,null,null,null,null,null,null,null,null,null,null,null,null,null,null,null,null,{"$f":"validaEmail(D198)","v":false},{"$f":"validaEmail(H198)","v":false}]
[null,null,null,null,null,null,null,null,null,null,null,null,null,null,null,null,null,null,null,null,null,null,null,{"$f":"validaEmail(D199)","v":false},{"$f":"validaEmail(H199)","v":false}]
[null,null,null,null,null,null,null,null,null,null,null,null,null,null,null,null,null,null,null,null,null,null,null,{"$f":"validaEmail(D200)","v":false},{"$f":"validaEmail(H200)","v":false}]
[null,null,null,null,null,null,null,null,null,null,null,null,null,null,null,null,null,null,null,null,null,null,null,{"$f":"validaEmail(D201)","v":false},{"$f":"validaEmail(H201)","v":false}]
[null,null,null,null,null,null,null,null,null,null,null,null,null,null,null,null,null,null,null,null,null,null,null,{"$f":"validaEmail(D202)","v":false},{"$f":"validaEmail(H202)","v":false}]
[null,null,null,null,null,null,null,null,null,null,null,null,null,null,null,null,null,null,null,null,null,null,null,{"$f":"validaEmail(D203)","v":false},{"$f":"validaEmail(H203)","v":false}]
[null,null,null,null,null,null,null,null,null,null,null,null,null,null,null,null,null,null,null,null,null,null,null,{"$f":"validaEmail(D204)","v":false},{"$f":"validaEmail(H204)","v":false}]
[null,null,null,null,null,null,null,null,null,null,null,null,null,null,null,null,null,null,null,null,null,null,null,{"$f":"validaEmail(D205)","v":false},{"$f":"validaEmail(H205)","v":false}]
[null,null,null,null,null,null,null,null,null,null,null,null,null,null,null,null,null,null,null,null,null,null,null,{"$f":"validaEmail(D206)","v":false},{"$f":"validaEmail(H206)","v":false}]
[null,null,null,null,null,null,null,null,null,null,null,null,null,null,null,null,null,null,null,null,null,null,null,{"$f":"validaEmail(D207)","v":false},{"$f":"validaEmail(H207)","v":false}]
[null,null,null,null,null,null,null,null,null,null,null,null,null,null,null,null,null,null,null,null,null,null,null,{"$f":"validaEmail(D208)","v":false},{"$f":"validaEmail(H208)","v":false}]
[null,null,null,null,null,null,null,null,null,null,null,null,null,null,null,null,null,null,null,null,null,null,null,{"$f":"validaEmail(D209)","v":false},{"$f":"validaEmail(H209)","v":false}]
[null,null,null,null,null,null,null,null,null,null,null,null,null,null,null,null,null,null,null,null,null,null,null,{"$f":"validaEmail(D210)","v":false},{"$f":"validaEmail(H210)","v":false}]
[null,null,null,null,null,null,null,null,null,null,null,null,null,null,null,null,null,null,null,null,null,null,null,{"$f":"validaEmail(D211)","v":false},{"$f":"validaEmail(H211)","v":false}]
[null,null,null,null,null,null,null,null,null,null,null,null,null,null,null,null,null,null,null,null,null,null,null,{"$f":"validaEmail(D212)","v":false},{"$f":"validaEmail(H212)","v":false}]
[null,null,null,null,null,null,null,null,null,null,null,null,null,null,null,null,null,null,null,null,null,null,null,{"$f":"validaEmail(D213)","v":false},{"$f":"validaEmail(H213)","v":false}]
[null,null,null,null,null,null,null,null,null,null,null,null,null,null,null,null,null,null,null,null,null,null,null,{"$f":"validaEmail(D214)","v":false},{"$f":"validaEmail(H214)","v":false}]
[null,null,null,null,null,null,null,null,null,null,null,null,null,null,null,null,null,null,null,null,null,null,null,{"$f":"validaEmail(D215)","v":false},{"$f":"validaEmail(H215)","v":false}]
[null,null,null,null,null,null,null,null,null,null,null,null,null,null,null,null,null,null,null,null,null,null,null,{"$f":"validaEmail(D216)","v":false},{"$f":"validaEmail(H216)","v":false}]
[null,null,null,null,null,null,null,null,null,null,null,null,null,null,null,null,null,null,null,null,null,null,null,{"$f":"validaEmail(D217)","v":false},{"$f":"validaEmail(H217)","v":false}]
[null,null,null,null,null,null,null,null,null,null,null,null,null,null,null,null,null,null,null,null,null,null,null,{"$f":"validaEmail(D218)","v":false},{"$f":"validaEmail(H218)","v":false}]
[null,null,null,null,null,null,null,null,null,null,null,null,null,null,null,null,null,null,null,null,null,null,null,{"$f":"validaEmail(D219)","v":false},{"$f":"validaEmail(H219)","v":false}]
[null,null,null,null,null,null,null,null,null,null,null,null,null,null,null,null,null,null,null,null,null,null,null,{"$f":"validaEmail(D220)","v":false},{"$f":"validaEmail(H220)","v":false}]
[null,null,null,null,null,null,null,null,null,null,null,null,null,null,null,null,null,null,null,null,null,null,null,{"$f":"validaEmail(D221)","v":false},{"$f":"validaEmail(H221)","v":false}]
[null,null,null,null,null,null,null,null,null,null,null,null,null,null,null,null,null,null,null,null,null,null,null,{"$f":"validaEmail(D222)","v":false},{"$f":"validaEmail(H222)","v":false}]
[null,null,null,null,null,null,null,null,null,null,null,null,null,null,null,null,null,null,null,null,null,null,null,{"$f":"validaEmail(D223)","v":false},{"$f":"validaEmail(H223)","v":false}]
[null,null,null,null,null,null,null,null,null,null,null,null,null,null,null,null,null,null,null,null,null,null,null,{"$f":"validaEmail(D224)","v":false},{"$f":"validaEmail(H224)","v":false}]
[null,null,null,null,null,null,null,null,null,null,null,null,null,null,null,null,null,null,null,null,null,null,null,{"$f":"validaEmail(D225)","v":false},{"$f":"validaEmail(H225)","v":false}]
[null,null,null,null,null,null,null,null,null,null,null,null,null,null,null,null,null,null,null,null,null,null,null,{"$f":"validaEmail(D226)","v":false},{"$f":"validaEmail(H226)","v":false}]
[null,null,null,null,null,null,null,null,null,null,null,null,null,null,null,null,null,null,null,null,null,null,null,{"$f":"validaEmail(D227)","v":false},{"$f":"validaEmail(H227)","v":false}]
[null,null,null,null,null,null,null,null,null,null,null,null,null,null,null,null,null,null,null,null,null,null,null,{"$f":"validaEmail(D228)","v":false},{"$f":"validaEmail(H228)","v":false}]
[null,null,null,null,null,null,null,null,null,null,null,null,null,null,null,null,null,null,null,null,null,null,null,{"$f":"validaEmail(D229)","v":false},{"$f":"validaEmail(H229)","v":false}]
[null,null,null,null,null,null,null,null,null,null,null,null,null,null,null,null,null,null,null,null,null,null,null,{"$f":"validaEmail(D230)","v":false},{"$f":"validaEmail(H230)","v":false}]
[null,null,null,null,null,null,null,null,null,null,null,null,null,null,null,null,null,null,null,null,null,null,null,{"$f":"validaEmail(D231)","v":false},{"$f":"validaEmail(H231)","v":false}]
[null,null,null,null,null,null,null,null,null,null,null,null,null,null,null,null,null,null,null,null,null,null,null,{"$f":"validaEmail(D232)","v":false},{"$f":"validaEmail(H232)","v":false}]
[null,null,null,null,null,null,null,null,null,null,null,null,null,null,null,null,null,null,null,null,null,null,null,{"$f":"validaEmail(D233)","v":false},{"$f":"validaEmail(H233)","v":false}]
[null,null,null,null,null,null,null,null,null,null,null,null,null,null,null,null,null,null,null,null,null,null,null,{"$f":"validaEmail(D234)","v":false},{"$f":"validaEmail(H234)","v":false}]
[null,null,null,null,null,null,null,null,null,null,null,null,null,null,null,null,null,null,null,null,null,null,null,{"$f":"validaEmail(D235)","v":false},{"$f":"validaEmail(H235)","v":false}]
[null,null,null,null,null,null,null,null,null,null,null,null,null,null,null,null,null,null,null,null,null,null,null,{"$f":"validaEmail(D236)","v":false},{"$f":"validaEmail(H236)","v":false}]
[null,null,null,null,null,null,null,null,null,null,null,null,null,null,null,null,null,null,null,null,null,null,null,{"$f":"validaEmail(D237)","v":false},{"$f":"validaEmail(H237)","v":false}]
[null,null,null,null,null,null,null,null,null,null,null,null,null,null,null,null,null,null,null,null,null,null,null,{"$f":"validaEmail(D238)","v":false},{"$f":"validaEmail(H238)","v":false}]
[null,null,null,null,null,null,null,null,null,null,null,null,null,null,null,null,null,null,null,null,null,null,null,{"$f":"validaEmail(D239)","v":false},{"$f":"validaEmail(H239)","v":false}]
[null,null,null,null,null,null,null,null,null,null,null,null,null,null,null,null,null,null,null,null,null,null,null,{"$f":"validaEmail(D240)","v":false},{"$f":"validaEmail(H240)","v":false}]
[null,null,null,null,null,null,null,null,null,null,null,null,null,null,null,null,null,null,null,null,null,null,null,{"$f":"validaEmail(D241)","v":false},{"$f":"validaEmail(H241)","v":false}]
[null,null,null,null,null,null,null,null,null,null,null,null,null,null,null,null,null,null,null,null,null,null,null,{"$f":"validaEmail(D242)","v":false},{"$f":"validaEmail(H242)","v":false}]
[null,null,null,null,null,null,null,null,null,null,null,null,null,null,null,null,null,null,null,null,null,null,null,{"$f":"validaEmail(D243)","v":false},{"$f":"validaEmail(H243)","v":false}]
[null,null,null,null,null,null,null,null,null,null,null,null,null,null,null,null,null,null,null,null,null,null,null,{"$f":"validaEmail(D244)","v":false},{"$f":"validaEmail(H244)","v":false}]
[null,null,null,null,null,null,null,null,null,null,null,null,null,null,null,null,null,null,null,null,null,null,null,{"$f":"validaEmail(D245)","v":false},{"$f":"validaEmail(H245)","v":false}]
[null,null,null,null,null,null,null,null,null,null,null,null,null,null,null,null,null,null,null,null,null,null,null,{"$f":"validaEmail(D246)","v":false},{"$f":"validaEmail(H246)","v":false}]
[null,null,null,null,null,null,null,null,null,null,null,null,null,null,null,null,null,null,null,null,null,null,null,{"$f":"validaEmail(D247)","v":false},{"$f":"validaEmail(H247)","v":false}]
[null,null,null,null,null,null,null,null,null,null,null,null,null,null,null,null,null,null,null,null,null,null,null,{"$f":"validaEmail(D248)","v":false},{"$f":"validaEmail(H248)","v":false}]
[null,null,null,null,null,null,null,null,null,null,null,null,null,null,null,null,null,null,null,null,null,null,null,{"$f":"validaEmail(D249)","v":false},{"$f":"validaEmail(H249)","v":false}]
[null,null,null,null,null,null,null,null,null,null,null,null,null,null,null,null,null,null,null,null,null,null,null,{"$f":"validaEmail(D250)","v":false},{"$f":"validaEmail(H250)","v":false}]
[null,null,null,null,null,null,null,null,null,null,null,null,null,null,null,null,null,null,null,null,null,null,null,{"$f":"validaEmail(D251)","v":false},{"$f":"validaEmail(H251)","v":false}]
[null,null,null,null,null,null,null,null,null,null,null,null,null,null,null,null,null,null,null,null,null,null,null,{"$f":"validaEmail(D252)","v":false},{"$f":"validaEmail(H252)","v":false}]
[null,null,null,null,null,null,null,null,null,null,null,null,null,null,null,null,null,null,null,null,null,null,null,{"$f":"validaEmail(D253)","v":false},{"$f":"validaEmail(H253)","v":false}]
[null,null,null,null,null,null,null,null,null,null,null,null,null,null,null,null,null,null,null,null,null,null,null,{"$f":"validaEmail(D254)","v":false},{"$f":"validaEmail(H254)","v":false}]
[null,null,null,null,null,null,null,null,null,null,null,null,null,null,null,null,null,null,null,null,null,null,null,{"$f":"validaEmail(D255)","v":false},{"$f":"validaEmail(H255)","v":false}]
[null,null,null,null,null,null,null,null,null,null,null,null,null,null,null,null,null,null,null,null,null,null,null,{"$f":"validaEmail(D256)","v":false},{"$f":"validaEmail(H256)","v":false}]
[null,null,null,null,null,null,null,null,null,null,null,null,null,null,null,null,null,null,null,null,null,null,null,{"$f":"validaEmail(D257)","v":false},{"$f":"validaEmail(H257)","v":false}]
[null,null,null,null,null,null,null,null,null,null,null,null,null,null,null,null,null,null,null,null,null,null,null,{"$f":"validaEmail(D258)","v":false},{"$f":"validaEmail(H258)","v":false}]
[null,null,null,null,null,null,null,null,null,null,null,null,null,null,null,null,null,null,null,null,null,null,null,{"$f":"validaEmail(D259)","v":false},{"$f":"validaEmail(H259)","v":false}]
[null,null,null,null,null,null,null,null,null,null,null,null,null,null,null,null,null,null,null,null,null,null,null,{"$f":"validaEmail(D260)","v":false},{"$f":"validaEmail(H260)","v":false}]
[null,null,null,null,null,null,null,null,null,null,null,null,null,null,null,null,null,null,null,null,null,null,null,{"$f":"validaEmail(D261)","v":false},{"$f":"validaEmail(H261)","v":false}]
[null,null,null,null,null,null,null,null,null,null,null,null,null,null,null,null,null,null,null,null,null,null,null,{"$f":"validaEmail(D262)","v":false},{"$f":"validaEmail(H262)","v":false}]
[null,null,null,null,null,null,null,null,null,null,null,null,null,null,null,null,null,null,null,null,null,null,null,{"$f":"validaEmail(D263)","v":false},{"$f":"validaEmail(H263)","v":false}]
[null,null,null,null,null,null,null,null,null,null,null,null,null,null,null,null,null,null,null,null,null,null,null,{"$f":"validaEmail(D264)","v":false},{"$f":"validaEmail(H264)","v":false}]
[null,null,null,null,null,null,null,null,null,null,null,null,null,null,null,null,null,null,null,null,null,null,null,{"$f":"validaEmail(D265)","v":false},{"$f":"validaEmail(H265)","v":false}]
[null,null,null,null,null,null,null,null,null,null,null,null,null,null,null,null,null,null,null,null,null,null,null,{"$f":"validaEmail(D266)","v":false},{"$f":"validaEmail(H266)","v":false}]
[null,null,null,null,null,null,null,null,null,null,null,null,null,null,null,null,null,null,null,null,null,null,null,{"$f":"validaEmail(D267)","v":false},{"$f":"validaEmail(H267)","v":false}]
[null,null,null,null,null,null,null,null,null,null,null,null,null,null,null,null,null,null,null,null,null,null,null,{"$f":"validaEmail(D268)","v":false},{"$f":"validaEmail(H268)","v":false}]
[null,null,null,null,null,null,null,null,null,null,null,null,null,null,null,null,null,null,null,null,null,null,null,{"$f":"validaEmail(D269)","v":false},{"$f":"validaEmail(H269)","v":false}]
[null,null,null,null,null,null,null,null,null,null,null,null,null,null,null,null,null,null,null,null,null,null,null,{"$f":"validaEmail(D270)","v":false},{"$f":"validaEmail(H270)","v":false}]
[null,null,null,null,null,null,null,null,null,null,null,null,null,null,null,null,null,null,null,null,null,null,null,{"$f":"validaEmail(D271)","v":false},{"$f":"validaEmail(H271)","v":false}]
[null,null,null,null,null,null,null,null,null,null,null,null,null,null,null,null,null,null,null,null,null,null,null,{"$f":"validaEmail(D272)","v":false},{"$f":"validaEmail(H272)","v":false}]
[null,null,null,null,null,null,null,null,null,null,null,null,null,null,null,null,null,null,null,null,null,null,null,{"$f":"validaEmail(D273)","v":false},{"$f":"validaEmail(H273)","v":false}]
[null,null,null,null,null,null,null,null,null,null,null,null,null,null,null,null,null,null,null,null,null,null,null,{"$f":"validaEmail(D274)","v":false},{"$f":"validaEmail(H274)","v":false}]
[null,null,null,null,null,null,null,null,null,null,null,null,null,null,null,null,null,null,null,null,null,null,null,{"$f":"validaEmail(D275)","v":false},{"$f":"validaEmail(H275)","v":false}]
[null,null,null,null,null,null,null,null,null,null,null,null,null,null,null,null,null,null,null,null,null,null,null,{"$f":"validaEmail(D276)","v":false},{"$f":"validaEmail(H276)","v":false}]
[null,null,null,null,null,null,null,null,null,null,null,null,null,null,null,null,null,null,null,null,null,null,null,{"$f":"validaEmail(D277)","v":false},{"$f":"validaEmail(H277)","v":false}]
[null,null,null,null,null,null,null,null,null,null,null,null,null,null,null,null,null,null,null,null,null,null,null,{"$f":"validaEmail(D278)","v":false},{"$f":"validaEmail(H278)","v":false}]
[null,null,null,null,null,null,null,null,null,null,null,null,null,null,null,null,null,null,null,null,null,null,null,{"$f":"validaEmail(D279)","v":false},{"$f":"validaEmail(H279)","v":false}]
[null,null,null,null,null,null,null,null,null,null,null,null,null,null,null,null,null,null,null,null,null,null,null,{"$f":"validaEmail(D280)","v":false},{"$f":"validaEmail(H280)","v":false}]
[null,null,null,null,null,null,null,null,null,null,null,null,null,null,null,null,null,null,null,null,null,null,null,{"$f":"validaEmail(D281)","v":false},{"$f":"validaEmail(H281)","v":false}]
[null,null,null,null,null,null,null,null,null,null,null,null,null,null,null,null,null,null,null,null,null,null,null,{"$f":"validaEmail(D282)","v":false},{"$f":"validaEmail(H282)","v":false}]
[null,null,null,null,null,null,null,null,null,null,null,null,null,null,null,null,null,null,null,null,null,null,null,{"$f":"validaEmail(D283)","v":false},{"$f":"validaEmail(H283)","v":false}]
[null,null,null,null,null,null,null,null,null,null,null,null,null,null,null,null,null,null,null,null,null,null,null,{"$f":"validaEmail(D284)","v":false},{"$f":"validaEmail(H284)","v":false}]
[null,null,null,null,null,null,null,null,null,null,null,null,null,null,null,null,null,null,null,null,null,null,null,{"$f":"validaEmail(D285)","v":false},{"$f":"validaEmail(H285)","v":false}]
[null,null,null,null,null,null,null,null,null,null,null,null,null,null,null,null,null,null,null,null,null,null,null,{"$f":"validaEmail(D286)","v":false},{"$f":"validaEmail(H286)","v":false}]
[null,null,null,null,null,null,null,null,null,null,null,null,null,null,null,null,null,null,null,null,null,null,null,{"$f":"validaEmail(D287)","v":false},{"$f":"validaEmail(H287)","v":false}]
[null,null,null,null,null,null,null,null,null,null,null,null,null,null,null,null,null,null,null,null,null,null,null,{"$f":"validaEmail(D288)","v":false},{"$f":"validaEmail(H288)","v":false}]
[null,null,null,null,null,null,null,null,null,null,null,null,null,null,null,null,null,null,null,null,null,null,null,{"$f":"validaEmail(D289)","v":false},{"$f":"validaEmail(H289)","v":false}]
[null,null,null,null,null,null,null,null,null,null,null,null,null,null,null,null,null,null,null,null,null,null,null,{"$f":"validaEmail(D290)","v":false},{"$f":"validaEmail(H290)","v":false}]
[null,null,null,null,null,null,null,null,null,null,null,null,null,null,null,null,null,null,null,null,null,null,null,{"$f":"validaEmail(D291)","v":false},{"$f":"validaEmail(H291)","v":false}]
[null,null,null,null,null,null,null,null,null,null,null,null,null,null,null,null,null,null,null,null,null,null,null,{"$f":"validaEmail(D292)","v":false},{"$f":"validaEmail(H292)","v":false}]
[null,null,null,null,null,null,null,null,null,null,null,null,null,null,null,null,null,null,null,null,null,null,null,{"$f":"validaEmail(D293)","v":false},{"$f":"validaEmail(H293)","v":false}]
[null,null,null,null,null,null,null,null,null,null,null,null,null,null,null,null,null,null,null,null,null,null,null,{"$f":"validaEmail(D294)","v":false},{"$f":"validaEmail(H294)","v":false}]
[null,null,null,null,null,null,null,null,null,null,null,null,null,null,null,null,null,null,null,null,null,null,null,{"$f":"validaEmail(D295)","v":false},{"$f":"validaEmail(H295)","v":false}]
[null,null,null,null,null,null,null,null,null,null,null,null,null,null,null,null,null,null,null,null,null,null,null,{"$f":"validaEmail(D296)","v":false},{"$f":"validaEmail(H296)","v":false}]
[null,null,null,null,null,null,null,null,null,null,null,null,null,null,null,null,null,null,null,null,null,null,null,{"$f":"validaEmail(D297)","v":false},{"$f":"validaEmail(H297)","v":false}]
[null,null,null,null,null,null,null,null,null,null,null,null,null,null,null,null,null,null,null,null,null,null,null,{"$f":"validaEmail(D298)","v":false},{"$f":"validaEmail(H298)","v":false}]
[null,null,null,null,null,null,null,null,null,null,null,null,null,null,null,null,null,null,null,null,null,null,null,{"$f":"validaEmail(D299)","v":false},{"$f":"validaEmail(H299)","v":false}]
[null,null,null,null,null,null,null,null,null,null,null,null,null,null,null,null,null,null,null,null,null,null,null,{"$f":"validaEmail(D300)","v":false},{"$f":"validaEmail(H300)","v":false}]
[null,null,null,null,null,null,null,null,null,null,null,null,null,null,null,null,null,null,null,null,null,null,null,{"$f":"validaEmail(D301)","v":false},{"$f":"validaEmail(H301)","v":false}]
[null,null,null,null,null,null,null,null,null,null,null,null,null,null,null,null,null,null,null,null,null,null,null,{"$f":"validaEmail(D302)","v":false},{"$f":"validaEmail(H302)","v":false}]
[null,null,null,null,null,null,null,null,null,null,null,null,null,null,null,null,null,null,null,null,null,null,null,{"$f":"validaEmail(D303)","v":false},{"$f":"validaEmail(H303)","v":false}]
[null,null,null,null,null,null,null,null,null,null,null,null,null,null,null,null,null,null,null,null,null,null,null,{"$f":"validaEmail(D304)","v":false},{"$f":"validaEmail(H304)","v":false}]
[null,null,null,null,null,null,null,null,null,null,null,null,null,null,null,null,null,null,null,null,null,null,null,{"$f":"validaEmail(D305)","v":false},{"$f":"validaEmail(H305)","v":false}]
[null,null,null,null,null,null,null,null,null,null,null,null,null,null,null,null,null,null,null,null,null,null,null,{"$f":"validaEmail(D306)","v":false},{"$f":"validaEmail(H306)","v":false}]
[null,null,null,null,null,null,null,null,null,null,null,null,null,null,null,null,null,null,null,null,null,null,null,{"$f":"validaEmail(D307)","v":false},{"$f":"validaEmail(H307)","v":false}]
[null,null,null,null,null,null,null,null,null,null,null,null,null,null,null,null,null,null,null,null,null,null,null,{"$f":"validaEmail(D308)","v":false},{"$f":"validaEmail(H308)","v":false}]
[null,null,null,null,null,null,null,null,null,null,null,null,null,null,null,null,null,null,null,null,null,null,null,{"$f":"validaEmail(D309)","v":false},{"$f":"validaEmail(H309)","v":false}]
[null,null,null,null,null,null,null,null,null,null,null,null,null,null,null,null,null,null,null,null,null,null,null,{"$f":"validaEmail(D310)","v":false},{"$f":"validaEmail(H310)","v":false}]
[null,null,null,null,null,null,null,null,null,null,null,null,null,null,null,null,null,null,null,null,null,null,null,{"$f":"validaEmail(D311)","v":false},{"$f":"validaEmail(H311)","v":false}]
[null,null,null,null,null,null,null,null,null,null,null,null,null,null,null,null,null,null,null,null,null,null,null,{"$f":"validaEmail(D312)","v":false},{"$f":"validaEmail(H312)","v":false}]
[null,null,null,null,null,null,null,null,null,null,null,null,null,null,null,null,null,null,null,null,null,null,null,{"$f":"validaEmail(D313)","v":false},{"$f":"validaEmail(H313)","v":false}]
[null,null,null,null,null,null,null,null,null,null,null,null,null,null,null,null,null,null,null,null,null,null,null,{"$f":"validaEmail(D314)","v":false},{"$f":"validaEmail(H314)","v":false}]
[null,null,null,null,null,null,null,null,null,null,null,null,null,null,null,null,null,null,null,null,null,null,null,{"$f":"validaEmail(D315)","v":false},{"$f":"validaEmail(H315)","v":false}]
[null,null,null,null,null,null,null,null,null,null,null,null,null,null,null,null,null,null,null,null,null,null,null,{"$f":"validaEmail(D316)","v":false},{"$f":"validaEmail(H316)","v":false}]
[null,null,null,null,null,null,null,null,null,null,null,null,null,null,null,null,null,null,null,null,null,null,null,{"$f":"validaEmail(D317)","v":false},{"$f":"validaEmail(H317)","v":false}]
[null,null,null,null,null,null,null,null,null,null,null,null,null,null,null,null,null,null,null,null,null,null,null,{"$f":"validaEmail(D318)","v":false},{"$f":"validaEmail(H318)","v":false}]
[null,null,null,null,null,null,null,null,null,null,null,null,null,null,null,null,null,null,null,null,null,null,null,{"$f":"validaEmail(D319)","v":false},{"$f":"validaEmail(H319)","v":false}]
[null,null,null,null,null,null,null,null,null,null,null,null,null,null,null,null,null,null,null,null,null,null,null,{"$f":"validaEmail(D320)","v":false},{"$f":"validaEmail(H320)","v":false}]
[null,null,null,null,null,null,null,null,null,null,null,null,null,null,null,null,null,null,null,null,null,null,null,{"$f":"validaEmail(D321)","v":false},{"$f":"validaEmail(H321)","v":false}]
[null,null,null,null,null,null,null,null,null,null,null,null,null,null,null,null,null,null,null,null,null,null,null,{"$f":"validaEmail(D322)","v":false},{"$f":"validaEmail(H322)","v":false}]
[null,null,null,null,null,null,null,null,null,null,null,null,null,null,null,null,null,null,null,null,null,null,null,{"$f":"validaEmail(D323)","v":false},{"$f":"validaEmail(H323)","v":false}]
[null,null,null,null,null,null,null,null,null,null,null,null,null,null,null,null,null,null,null,null,null,null,null,{"$f":"validaEmail(D324)","v":false},{"$f":"validaEmail(H324)","v":false}]
[null,null,null,null,null,null,null,null,null,null,null,null,null,null,null,null,null,null,null,null,null,null,null,{"$f":"validaEmail(D325)","v":false},{"$f":"validaEmail(H325)","v":false}]
[null,null,null,null,null,null,null,null,null,null,null,null,null,null,null,null,null,null,null,null,null,null,null,{"$f":"validaEmail(D326)","v":false},{"$f":"validaEmail(H326)","v":false}]
[null,null,null,null,null,null,null,null,null,null,null,null,null,null,null,null,null,null,null,null,null,null,null,{"$f":"validaEmail(D327)","v":false},{"$f":"validaEmail(H327)","v":false}]
[null,null,null,null,null,null,null,null,null,null,null,null,null,null,null,null,null,null,null,null,null,null,null,{"$f":"validaEmail(D328)","v":false},{"$f":"validaEmail(H328)","v":false}]
[null,null,null,null,null,null,null,null,null,null,null,null,null,null,null,null,null,null,null,null,null,null,null,{"$f":"validaEmail(D329)","v":false},{"$f":"validaEmail(H329)","v":false}]
[null,null,null,null,null,null,null,null,null,null,null,null,null,null,null,null,null,null,null,null,null,null,null,{"$f":"validaEmail(D330)","v":false},{"$f":"validaEmail(H330)","v":false}]
[null,null,null,null,null,null,null,null,null,null,null,null,null,null,null,null,null,null,null,null,null,null,null,{"$f":"validaEmail(D331)","v":false},{"$f":"validaEmail(H331)","v":false}]
[null,null,null,null,null,null,null,null,null,null,null,null,null,null,null,null,null,null,null,null,null,null,null,{"$f":"validaEmail(D332)","v":false},{"$f":"validaEmail(H332)","v":false}]
[null,null,null,null,null,null,null,null,null,null,null,null,null,null,null,null,null,null,null,null,null,null,null,{"$f":"validaEmail(D333)","v":false},{"$f":"validaEmail(H333)","v":false}]
[null,null,null,null,null,null,null,null,null,null,null,null,null,null,null,null,null,null,null,null,null,null,null,{"$f":"validaEmail(D334)","v":false},{"$f":"validaEmail(H334)","v":false}]
[null,null,null,null,null,null,null,null,null,null,null,null,null,null,null,null,null,null,null,null,null,null,null,{"$f":"validaEmail(D335)","v":false},{"$f":"validaEmail(H335)","v":false}]
[null,null,null,null,null,null,null,null,null,null,null,null,null,null,null,null,null,null,null,null,null,null,null,{"$f":"validaEmail(D336)","v":false},{"$f":"validaEmail(H336)","v":false}]
[null,null,null,null,null,null,null,null,null,null,null,null,null,null,null,null,null,null,null,null,null,null,null,{"$f":"validaEmail(D337)","v":false},{"$f":"validaEmail(H337)","v":false}]
[null,null,null,null,null,null,null,null,null,null,null,null,null,null,null,null,null,null,null,null,null,null,null,{"$f":"validaEmail(D338)","v":false},{"$f":"validaEmail(H338)","v":false}]
[null,null,null,null,null,null,null,null,null,null,null,null,null,null,null,null,null,null,null,null,null,null,null,{"$f":"validaEmail(D339)","v":false},{"$f":"validaEmail(H339)","v":false}]
[null,null,null,null,null,null,null,null,null,null,null,null,null,null,null,null,null,null,null,null,null,null,null,{"$f":"validaEmail(D340)","v":false},{"$f":"validaEmail(H340)","v":false}]
[null,null,null,null,null,null,null,null,null,null,null,null,null,null,null,null,null,null,null,null,null,null,null,{"$f":"validaEmail(D341)","v":false},{"$f":"validaEmail(H341)","v":false}]
[null,null,null,null,null,null,null,null,null,null,null,null,null,null,null,null,null,null,null,null,null,null,null,{"$f":"validaEmail(D342)","v":false},{"$f":"validaEmail(H342)","v":false}]
[null,null,null,null,null,null,null,null,null,null,null,null,null,null,null,null,null,null,null,null,null,null,null,{"$f":"validaEmail(D343)","v":false},{"$f":"validaEmail(H343)","v":false}]
[null,null,null,null,null,null,null,null,null,null,null,null,null,null,null,null,null,null,null,null,null,null,null,{"$f":"validaEmail(D344)","v":false},{"$f":"validaEmail(H344)","v":false}]
[null,null,null,null,null,null,null,null,null,null,null,null,null,null,null,null,null,null,null,null,null,null,null,{"$f":"validaEmail(D345)","v":false},{"$f":"validaEmail(H345)","v":false}]
[null,null,null,null,null,null,null,null,null,null,null,null,null,null,null,null,null,null,null,null,null,null,null,{"$f":"validaEmail(D346)","v":false},{"$f":"validaEmail(H346)","v":false}]
[null,null,null,null,null,null,null,null,null,null,null,null,null,null,null,null,null,null,null,null,null,null,null,{"$f":"validaEmail(D347)","v":false},{"$f":"validaEmail(H347)","v":false}]
[null,null,null,null,null,null,null,null,null,null,null,null,null,null,null,null,null,null,null,null,null,null,null,{"$f":"validaEmail(D348)","v":false},{"$f":"validaEmail(H348)","v":false}]
[null,null,null,null,null,null,null,null,null,null,null,null,null,null,null,null,null,null,null,null,null,null,null,{"$f":"validaEmail(D349)","v":false},{"$f":"validaEmail(H349)","v":false}]
[null,null,null,null,null,null,null,null,null,null,null,null,null,null,null,null,null,null,null,null,null,null,null,{"$f":"validaEmail(D350)","v":false},{"$f":"validaEmail(H350)","v":false}]
[null,null,null,null,null,null,null,null,null,null,null,null,null,null,null,null,null,null,null,null,null,null,null,{"$f":"validaEmail(D351)","v":false},{"$f":"validaEmail(H351)","v":false}]
[null,null,null,null,null,null,null,null,null,null,null,null,null,null,null,null,null,null,null,null,null,null,null,{"$f":"validaEmail(D352)","v":false},{"$f":"validaEmail(H352)","v":false}]
[null,null,null,null,null,null,null,null,null,null,null,null,null,null,null,null,null,null,null,null,null,null,null,{"$f":"validaEmail(D353)","v":false},{"$f":"validaEmail(H353)","v":false}]
[null,null,null,null,null,null,null,null,null,null,null,null,null,null,null,null,null,null,null,null,null,null,null,{"$f":"validaEmail(D354)","v":false},{"$f":"validaEmail(H354)","v":false}]
[null,null,null,null,null,null,null,null,null,null,null,null,null,null,null,null,null,null,null,null,null,null,null,{"$f":"validaEmail(D355)","v":false},{"$f":"validaEmail(H355)","v":false}]
[null,null,null,null,null,null,null,null,null,null,null,null,null,null,null,null,null,null,null,null,null,null,null,{"$f":"validaEmail(D356)","v":false},{"$f":"validaEmail(H356)","v":false}]
[null,null,null,null,null,null,null,null,null,null,null,null,null,null,null,null,null,null,null,null,null,null,null,{"$f":"validaEmail(D357)","v":false},{"$f":"validaEmail(H357)","v":false}]
[null,null,null,null,null,null,null,null,null,null,null,null,null,null,null,null,null,null,null,null,null,null,null,{"$f":"validaEmail(D358)","v":false},{"$f":"validaEmail(H358)","v":false}]
[null,null,null,null,null,null,null,null,null,null,null,null,null,null,null,null,null,null,null,null,null,null,null,{"$f":"validaEmail(D359)","v":false},{"$f":"validaEmail(H359)","v":false}]
[null,null,null,null,null,null,null,null,null,null,null,null,null,null,null,null,null,null,null,null,null,null,null,{"$f":"validaEmail(D360)","v":false},{"$f":"validaEmail(H360)","v":false}]
[null,null,null,null,null,null,null,null,null,null,null,null,null,null,null,null,null,null,null,null,null,null,null,{"$f":"validaEmail(D361)","v":false},{"$f":"validaEmail(H361)","v":false}]
[null,null,null,null,null,null,null,null,null,null,null,null,null,null,null,null,null,null,null,null,null,null,null,{"$f":"validaEmail(D362)","v":false},{"$f":"validaEmail(H362)","v":false}]
[null,null,null,null,null,null,null,null,null,null,null,null,null,null,null,null,null,null,null,null,null,null,null,{"$f":"validaEmail(D363)","v":false},{"$f":"validaEmail(H363)","v":false}]
[null,null,null,null,null,null,null,null,null,null,null,null,null,null,null,null,null,null,null,null,null,null,null,{"$f":"validaEmail(D364)","v":false},{"$f":"validaEmail(H364)","v":false}]
[null,null,null,null,null,null,null,null,null,null,null,null,null,null,null,null,null,null,null,null,null,null,null,{"$f":"validaEmail(D365)","v":false},{"$f":"validaEmail(H365)","v":false}]
[null,null,null,null,null,null,null,null,null,null,null,null,null,null,null,null,null,null,null,null,null,null,null,{"$f":"validaEmail(D366)","v":false},{"$f":"validaEmail(H366)","v":false}]
[null,null,null,null,null,null,null,null,null,null,null,null,null,null,null,null,null,null,null,null,null,null,null,{"$f":"validaEmail(D367)","v":false},{"$f":"validaEmail(H367)","v":false}]
[null,null,null,null,null,null,null,null,null,null,null,null,null,null,null,null,null,null,null,null,null,null,null,{"$f":"validaEmail(D368)","v":false},{"$f":"validaEmail(H368)","v":false}]
[null,null,null,null,null,null,null,null,null,null,null,null,null,null,null,null,null,null,null,null,null,null,null,{"$f":"validaEmail(D369)","v":false},{"$f":"validaEmail(H369)","v":false}]
[null,null,null,null,null,null,null,null,null,null,null,null,null,null,null,null,null,null,null,null,null,null,null,{"$f":"validaEmail(D370)","v":false},{"$f":"validaEmail(H370)","v":false}]
[null,null,null,null,null,null,null,null,null,null,null,null,null,null,null,null,null,null,null,null,null,null,null,{"$f":"validaEmail(D371)","v":false},{"$f":"validaEmail(H371)","v":false}]
[null,null,null,null,null,null,null,null,null,null,null,null,null,null,null,null,null,null,null,null,null,null,null,{"$f":"validaEmail(D372)","v":false},{"$f":"validaEmail(H372)","v":false}]
[null,null,null,null,null,null,null,null,null,null,null,null,null,null,null,null,null,null,null,null,null,null,null,{"$f":"validaEmail(D373)","v":false},{"$f":"validaEmail(H373)","v":false}]
[null,null,null,null,null,null,null,null,null,null,null,null,null,null,null,null,null,null,null,null,null,null,null,{"$f":"validaEmail(D374)","v":false},{"$f":"validaEmail(H374)","v":false}]
[null,null,null,null,null,null,null,null,null,null,null,null,null,null,null,null,null,null,null,null,null,null,null,{"$f":"validaEmail(D375)","v":false},{"$f":"validaEmail(H375)","v":false}]
[null,null,null,null,null,null,null,null,null,null,null,null,null,null,null,null,null,null,null,null,null,null,null,{"$f":"validaEmail(D376)","v":false},{"$f":"validaEmail(H376)","v":false}]
[null,null,null,null,null,null,null,null,null,null,null,null,null,null,null,null,null,null,null,null,null,null,null,{"$f":"validaEmail(D377)","v":false},{"$f":"validaEmail(H377)","v":false}]
[null,null,null,null,null,null,null,null,null,null,null,null,null,null,null,null,null,null,null,null,null,null,null,{"$f":"validaEmail(D378)","v":false},{"$f":"validaEmail(H378)","v":false}]
[null,null,null,null,null,null,null,null,null,null,null,null,null,null,null,null,null,null,null,null,null,null,null,{"$f":"validaEmail(D379)","v":false},{"$f":"validaEmail(H379)","v":false}]
[null,null,null,null,null,null,null,null,null,null,null,null,null,null,null,null,null,null,null,null,null,null,null,{"$f":"validaEmail(D380)","v":false},{"$f":"validaEmail(H380)","v":false}]
[null,null,null,null,null,null,null,null,null,null,null,null,null,null,null,null,null,null,null,null,null,null,null,{"$f":"validaEmail(D381)","v":false},{"$f":"validaEmail(H381)","v":false}]
[null,null,null,null,null,null,null,null,null,null,null,null,null,null,null,null,null,null,null,null,null,null,null,{"$f":"validaEmail(D382)","v":false},{"$f":"validaEmail(H382)","v":false}]
[null,null,null,null,null,null,null,null,null,null,null,null,null,null,null,null,null,null,null,null,null,null,null,{"$f":"validaEmail(D383)","v":false},{"$f":"validaEmail(H383)","v":false}]
[null,null,null,null,null,null,null,null,null,null,null,null,null,null,null,null,null,null,null,null,null,null,null,{"$f":"validaEmail(D384)","v":false},{"$f":"validaEmail(H384)","v":false}]
[null,null,null,null,null,null,null,null,null,null,null,null,null,null,null,null,null,null,null,null,null,null,null,{"$f":"validaEmail(D385)","v":false},{"$f":"validaEmail(H385)","v":false}]
[null,null,null,null,null,null,null,null,null,null,null,null,null,null,null,null,null,null,null,null,null,null,null,{"$f":"validaEmail(D386)","v":false},{"$f":"validaEmail(H386)","v":false}]
[null,null,null,null,null,null,null,null,null,null,null,null,null,null,null,null,null,null,null,null,null,null,null,{"$f":"validaEmail(D387)","v":false},{"$f":"validaEmail(H387)","v":false}]
[null,null,null,null,null,null,null,null,null,null,null,null,null,null,null,null,null,null,null,null,null,null,null,{"$f":"validaEmail(D388)","v":false},{"$f":"validaEmail(H388)","v":false}]
[null,null,null,null,null,null,null,null,null,null,null,null,null,null,null,null,null,null,null,null,null,null,null,{"$f":"validaEmail(D389)","v":false},{"$f":"validaEmail(H389)","v":false}]
[null,null,null,null,null,null,null,null,null,null,null,null,null,null,null,null,null,null,null,null,null,null,null,{"$f":"validaEmail(D390)","v":false},{"$f":"validaEmail(H390)","v":false}]
[null,null,null,null,null,null,null,null,null,null,null,null,null,null,null,null,null,null,null,null,null,null,null,{"$f":"validaEmail(D391)","v":false},{"$f":"validaEmail(H391)","v":false}]
[null,null,null,null,null,null,null,null,null,null,null,null,null,null,null,null,null,null,null,null,null,null,null,{"$f":"validaEmail(D392)","v":false},{"$f":"validaEmail(H392)","v":false}]
[null,null,null,null,null,null,null,null,null,null,null,null,null,null,null,null,null,null,null,null,null,null,null,{"$f":"validaEmail(D393)","v":false},{"$f":"validaEmail(H393)","v":false}]
[null,null,null,null,null,null,null,null,null,null,null,null,null,null,null,null,null,null,null,null,null,null,null,{"$f":"validaEmail(D394)","v":false},{"$f":"validaEmail(H394)","v":false}]
[null,null,null,null,null,null,null,null,null,null,null,null,null,null,null,null,null,null,null,null,null,null,null,{"$f":"validaEmail(D395)","v":false},{"$f":"validaEmail(H395)","v":false}]
[null,null,null,null,null,null,null,null,null,null,null,null,null,null,null,null,null,null,null,null,null,null,null,{"$f":"validaEmail(D396)","v":false},{"$f":"validaEmail(H396)","v":false}]
[null,null,null,null,null,null,null,null,null,null,null,null,null,null,null,null,null,null,null,null,null,null,null,{"$f":"validaEmail(D397)","v":false},{"$f":"validaEmail(H397)","v":false}]
[null,null,null,null,null,null,null,null,null,null,null,null,null,null,null,null,null,null,null,null,null,null,null,{"$f":"validaEmail(D398)","v":false},{"$f":"validaEmail(H398)","v":false}]
[null,null,null,null,null,null,null,null,null,null,null,null,null,null,null,null,null,null,null,null,null,null,null,{"$f":"validaEmail(D399)","v":false},{"$f":"validaEmail(H399)","v":false}]
[null,null,null,null,null,null,null,null,null,null,null,null,null,null,null,null,null,null,null,null,null,null,null,{"$f":"validaEmail(D400)","v":false},{"$f":"validaEmail(H400)","v":false}]
[null,null,null,null,null,null,null,null,null,null,null,null,null,null,null,null,null,null,null,null,null,null,null,{"$f":"validaEmail(D401)","v":false},{"$f":"validaEmail(H401)","v":false}]
[null,null,null,null,null,null,null,null,null,null,null,null,null,null,null,null,null,null,null,null,null,null,null,{"$f":"validaEmail(D402)","v":false},{"$f":"validaEmail(H402)","v":false}]
[null,null,null,null,null,null,null,null,null,null,null,null,null,null,null,null,null,null,null,null,null,null,null,{"$f":"validaEmail(D403)","v":false},{"$f":"validaEmail(H403)","v":false}]
[null,null,null,null,null,null,null,null,null,null,null,null,null,null,null,null,null,null,null,null,null,null,null,{"$f":"validaEmail(D404)","v":false},{"$f":"validaEmail(H404)","v":false}]
[null,null,null,null,null,null,null,null,null,null,null,null,null,null,null,null,null,null,null,null,null,null,null,{"$f":"validaEmail(D405)","v":false},{"$f":"validaEmail(H405)","v":false}]
[null,null,null,null,null,null,null,null,null,null,null,null,null,null,null,null,null,null,null,null,null,null,null,{"$f":"validaEmail(D406)","v":false},{"$f":"validaEmail(H406)","v":false}]
[null,null,null,null,null,null,null,null,null,null,null,null,null,null,null,null,null,null,null,null,null,null,null,{"$f":"validaEmail(D407)","v":false},{"$f":"validaEmail(H407)","v":false}]
[null,null,null,null,null,null,null,null,null,null,null,null,null,null,null,null,null,null,null,null,null,null,null,{"$f":"validaEmail(D408)","v":false},{"$f":"validaEmail(H408)","v":false}]
[null,null,null,null,null,null,null,null,null,null,null,null,null,null,null,null,null,null,null,null,null,null,null,{"$f":"validaEmail(D409)","v":false},{"$f":"validaEmail(H409)","v":false}]
[null,null,null,null,null,null,null,null,null,null,null,null,null,null,null,null,null,null,null,null,null,null,null,{"$f":"validaEmail(D410)","v":false},{"$f":"validaEmail(H410)","v":false}]
[null,null,null,null,null,null,null,null,null,null,null,null,null,null,null,null,null,null,null,null,null,null,null,{"$f":"validaEmail(D411)","v":false},{"$f":"validaEmail(H411)","v":false}]
[null,null,null,null,null,null,null,null,null,null,null,null,null,null,null,null,null,null,null,null,null,null,null,{"$f":"validaEmail(D412)","v":false},{"$f":"validaEmail(H412)","v":false}]
[null,null,null,null,null,null,null,null,null,null,null,null,null,null,null,null,null,null,null,null,null,null,null,{"$f":"validaEmail(D413)","v":false},{"$f":"validaEmail(H413)","v":false}]
[null,null,null,null,null,null,null,null,null,null,null,null,null,null,null,null,null,null,null,null,null,null,null,{"$f":"validaEmail(D414)","v":false},{"$f":"validaEmail(H414)","v":false}]
[null,null,null,null,null,null,null,null,null,null,null,null,null,null,null,null,null,null,null,null,null,null,null,{"$f":"validaEmail(D415)","v":false},{"$f":"validaEmail(H415)","v":false}]
[null,null,null,null,null,null,null,null,null,null,null,null,null,null,null,null,null,null,null,null,null,null,null,{"$f":"validaEmail(D416)","v":false},{"$f":"validaEmail(H416)","v":false}]
[null,null,null,null,null,null,null,null,null,null,null,null,null,null,null,null,null,null,null,null,null,null,null,{"$f":"validaEmail(D417)","v":false},{"$f":"validaEmail(H417)","v":false}]
[null,null,null,null,null,null,null,null,null,null,null,null,null,null,null,null,null,null,null,null,null,null,null,{"$f":"validaEmail(D418)","v":false},{"$f":"validaEmail(H418)","v":false}]
[null,null,null,null,null,null,null,null,null,null,null,null,null,null,null,null,null,null,null,null,null,null,null,{"$f":"validaEmail(D419)","v":false},{"$f":"validaEmail(H419)","v":false}]
[null,null,null,null,null,null,null,null,null,null,null,null,null,null,null,null,null,null,null,null,null,null,null,{"$f":"validaEmail(D420)","v":false},{"$f":"validaEmail(H420)","v":false}]
[null,null,null,null,null,null,null,null,null,null,null,null,null,null,null,null,null,null,null,null,null,null,null,{"$f":"validaEmail(D421)","v":false},{"$f":"validaEmail(H421)","v":false}]
[null,null,null,null,null,null,null,null,null,null,null,null,null,null,null,null,null,null,null,null,null,null,null,{"$f":"validaEmail(D422)","v":false},{"$f":"validaEmail(H422)","v":false}]
[null,null,null,null,null,null,null,null,null,null,null,null,null,null,null,null,null,null,null,null,null,null,null,{"$f":"validaEmail(D423)","v":false},{"$f":"validaEmail(H423)","v":false}]
[null,null,null,null,null,null,null,null,null,null,null,null,null,null,null,null,null,null,null,null,null,null,null,{"$f":"validaEmail(D424)","v":false},{"$f":"validaEmail(H424)","v":false}]
[null,null,null,null,null,null,null,null,null,null,null,null,null,null,null,null,null,null,null,null,null,null,null,{"$f":"validaEmail(D425)","v":false},{"$f":"validaEmail(H425)","v":false}]
[null,null,null,null,null,null,null,null,null,null,null,null,null,null,null,null,null,null,null,null,null,null,null,{"$f":"validaEmail(D426)","v":false},{"$f":"validaEmail(H426)","v":false}]
[null,null,null,null,null,null,null,null,null,null,null,null,null,null,null,null,null,null,null,null,null,null,null,{"$f":"validaEmail(D427)","v":false},{"$f":"validaEmail(H427)","v":false}]
[null,null,null,null,null,null,null,null,null,null,null,null,null,null,null,null,null,null,null,null,null,null,null,{"$f":"validaEmail(D428)","v":false},{"$f":"validaEmail(H428)","v":false}]
[null,null,null,null,null,null,null,null,null,null,null,null,null,null,null,null,null,null,null,null,null,null,null,{"$f":"validaEmail(D429)","v":false},{"$f":"validaEmail(H429)","v":false}]
[null,null,null,null,null,null,null,null,null,null,null,null,null,null,null,null,null,null,null,null,null,null,null,{"$f":"validaEmail(D430)","v":false},{"$f":"validaEmail(H430)","v":false}]
[null,null,null,null,null,null,null,null,null,null,null,null,null,null,null,null,null,null,null,null,null,null,null,{"$f":"validaEmail(D431)","v":false},{"$f":"validaEmail(H431)","v":false}]
[null,null,null,null,null,null,null,null,null,null,null,null,null,null,null,null,null,null,null,null,null,null,null,{"$f":"validaEmail(D432)","v":false},{"$f":"validaEmail(H432)","v":false}]
[null,null,null,null,null,null,null,null,null,null,null,null,null,null,null,null,null,null,null,null,null,null,null,{"$f":"validaEmail(D433)","v":false},{"$f":"validaEmail(H433)","v":false}]
[null,null,null,null,null,null,null,null,null,null,null,null,null,null,null,null,null,null,null,null,null,null,null,{"$f":"validaEmail(D434)","v":false},{"$f":"validaEmail(H434)","v":false}]
[null,null,null,null,null,null,null,null,null,null,null,null,null,null,null,null,null,null,null,null,null,null,null,{"$f":"validaEmail(D435)","v":false},{"$f":"validaEmail(H435)","v":false}]
[null,null,null,null,null,null,null,null,null,null,null,null,null,null,null,null,null,null,null,null,null,null,null,{"$f":"validaEmail(D436)","v":false},{"$f":"validaEmail(H436)","v":false}]
[null,null,null,null,null,null,null,null,null,null,null,null,null,null,null,null,null,null,null,null,null,null,null,{"$f":"validaEmail(D437)","v":false},{"$f":"validaEmail(H437)","v":false}]
[null,null,null,null,null,null,null,null,null,null,null,null,null,null,null,null,null,null,null,null,null,null,null,{"$f":"validaEmail(D438)","v":false},{"$f":"validaEmail(H438)","v":false}]
[null,null,null,null,null,null,null,null,null,null,null,null,null,null,null,null,null,null,null,null,null,null,null,{"$f":"validaEmail(D439)","v":false},{"$f":"validaEmail(H439)","v":false}]
[null,null,null,null,null,null,null,null,null,null,null,null,null,null,null,null,null,null,null,null,null,null,null,{"$f":"validaEmail(D440)","v":false},{"$f":"validaEmail(H440)","v":false}]
[null,null,null,null,null,null,null,null,null,null,null,null,null,null,null,null,null,null,null,null,null,null,null,{"$f":"validaEmail(D441)","v":false},{"$f":"validaEmail(H441)","v":false}]
[null,null,null,null,null,null,null,null,null,null,null,null,null,null,null,null,null,null,null,null,null,null,null,{"$f":"validaEmail(D442)","v":false},{"$f":"validaEmail(H442)","v":false}]
[null,null,null,null,null,null,null,null,null,null,null,null,null,null,null,null,null,null,null,null,null,null,null,{"$f":"validaEmail(D443)","v":false},{"$f":"validaEmail(H443)","v":false}]
[null,null,null,null,null,null,null,null,null,null,null,null,null,null,null,null,null,null,null,null,null,null,null,{"$f":"validaEmail(D444)","v":false},{"$f":"validaEmail(H444)","v":false}]
[null,null,null,null,null,null,null,null,null,null,null,null,null,null,null,null,null,null,null,null,null,null,null,{"$f":"validaEmail(D445)","v":false},{"$f":"validaEmail(H445)","v":false}]
[null,null,null,null,null,null,null,null,null,null,null,null,null,null,null,null,null,null,null,null,null,null,null,{"$f":"validaEmail(D446)","v":false},{"$f":"validaEmail(H446)","v":false}]
[null,null,null,null,null,null,null,null,null,null,null,null,null,null,null,null,null,null,null,null,null,null,null,{"$f":"validaEmail(D447)","v":false},{"$f":"validaEmail(H447)","v":false}]
[null,null,null,null,null,null,null,null,null,null,null,null,null,null,null,null,null,null,null,null,null,null,null,{"$f":"validaEmail(D448)","v":false},{"$f":"validaEmail(H448)","v":false}]
[null,null,null,null,null,null,null,null,null,null,null,null,null,null,null,null,null,null,null,null,null,null,null,{"$f":"validaEmail(D449)","v":false},{"$f":"validaEmail(H449)","v":false}]
[null,null,null,null,null,null,null,null,null,null,null,null,null,null,null,null,null,null,null,null,null,null,null,{"$f":"validaEmail(D450)","v":false},{"$f":"validaEmail(H450)","v":false}]
[null,null,null,null,null,null,null,null,null,null,null,null,null,null,null,null,null,null,null,null,null,null,null,{"$f":"validaEmail(D451)","v":false},{"$f":"validaEmail(H451)","v":false}]
[null,null,null,null,null,null,null,null,null,null,null,null,null,null,null,null,null,null,null,null,null,null,null,{"$f":"validaEmail(D452)","v":false},{"$f":"validaEmail(H452)","v":false}]
[null,null,null,null,null,null,null,null,null,null,null,null,null,null,null,null,null,null,null,null,null,null,null,{"$f":"validaEmail(D453)","v":false},{"$f":"validaEmail(H453)","v":false}]
[null,null,null,null,null,null,null,null,null,null,null,null,null,null,null,null,null,null,null,null,null,null,null,{"$f":"validaEmail(D454)","v":false},{"$f":"validaEmail(H454)","v":false}]
[null,null,null,null,null,null,null,null,null,null,null,null,null,null,null,null,null,null,null,null,null,null,null,{"$f":"validaEmail(D455)","v":false},{"$f":"validaEmail(H455)","v":false}]
[null,null,null,null,null,null,null,null,null,null,null,null,null,null,null,null,null,null,null,null,null,null,null,{"$f":"validaEmail(D456)","v":false},{"$f":"validaEmail(H456)","v":false}]
[null,null,null,null,null,null,null,null,null,null,null,null,null,null,null,null,null,null,null,null,null,null,null,{"$f":"validaEmail(D457)","v":false},{"$f":"validaEmail(H457)","v":false}]
[null,null,null,null,null,null,null,null,null,null,null,null,null,null,null,null,null,null,null,null,null,null,null,{"$f":"validaEmail(D458)","v":false},{"$f":"validaEmail(H458)","v":false}]
[null,null,null,null,null,null,null,null,null,null,null,null,null,null,null,null,null,null,null,null,null,null,null,{"$f":"validaEmail(D459)","v":false},{"$f":"validaEmail(H459)","v":false}]
[null,null,null,null,null,null,null,null,null,null,null,null,null,null,null,null,null,null,null,null,null,null,null,{"$f":"validaEmail(D460)","v":false},{"$f":"validaEmail(H460)","v":false}]
[null,null,null,null,null,null,null,null,null,null,null,null,null,null,null,null,null,null,null,null,null,null,null,{"$f":"validaEmail(D461)","v":false},{"$f":"validaEmail(H461)","v":false}]
[null,null,null,null,null,null,null,null,null,null,null,null,null,null,null,null,null,null,null,null,null,null,null,{"$f":"validaEmail(D462)","v":false},{"$f":"validaEmail(H462)","v":false}]
[null,null,null,null,null,null,null,null,null,null,null,null,null,null,null,null,null,null,null,null,null,null,null,{"$f":"validaEmail(D463)","v":false},{"$f":"validaEmail(H463)","v":false}]
[null,null,null,null,null,null,null,null,null,null,null,null,null,null,null,null,null,null,null,null,null,null,null,{"$f":"validaEmail(D464)","v":false},{"$f":"validaEmail(H464)","v":false}]
[null,null,null,null,null,null,null,null,null,null,null,null,null,null,null,null,null,null,null,null,null,null,null,{"$f":"validaEmail(D465)","v":false},{"$f":"validaEmail(H465)","v":false}]
[null,null,null,null,null,null,null,null,null,null,null,null,null,null,null,null,null,null,null,null,null,null,null,{"$f":"validaEmail(D466)","v":false},{"$f":"validaEmail(H466)","v":false}]
[null,null,null,null,null,null,null,null,null,null,null,null,null,null,null,null,null,null,null,null,null,null,null,{"$f":"validaEmail(D467)","v":false},{"$f":"validaEmail(H467)","v":false}]
[null,null,null,null,null,null,null,null,null,null,null,null,null,null,null,null,null,null,null,null,null,null,null,{"$f":"validaEmail(D468)","v":false},{"$f":"validaEmail(H468)","v":false}]
[null,null,null,null,null,null,null,null,null,null,null,null,null,null,null,null,null,null,null,null,null,null,null,{"$f":"validaEmail(D469)","v":false},{"$f":"validaEmail(H469)","v":false}]
[null,null,null,null,null,null,null,null,null,null,null,null,null,null,null,null,null,null,null,null,null,null,null,{"$f":"validaEmail(D470)","v":false},{"$f":"validaEmail(H470)","v":false}]
[null,null,null,null,null,null,null,null,null,null,null,null,null,null,null,null,null,null,null,null,null,null,null,{"$f":"validaEmail(D471)","v":false},{"$f":"validaEmail(H471)","v":false}]
[null,null,null,null,null,null,null,null,null,null,null,null,null,null,null,null,null,null,null,null,null,null,null,{"$f":"validaEmail(D472)","v":false},{"$f":"validaEmail(H472)","v":false}]
[null,null,null,null,null,null,null,null,null,null,null,null,null,null,null,null,null,null,null,null,null,null,null,{"$f":"validaEmail(D473)","v":false},{"$f":"validaEmail(H473)","v":false}]
[null,null,null,null,null,null,null,null,null,null,null,null,null,null,null,null,null,null,null,null,null,null,null,{"$f":"validaEmail(D474)","v":false},{"$f":"validaEmail(H474)","v":false}]
[null,null,null,null,null,null,null,null,null,null,null,null,null,null,null,null,null,null,null,null,null,null,null,{"$f":"validaEmail(D475)","v":false},{"$f":"validaEmail(H475)","v":false}]
[null,null,null,null,null,null,null,null,null,null,null,null,null,null,null,null,null,null,null,null,null,null,null,{"$f":"validaEmail(D476)","v":false},{"$f":"validaEmail(H476)","v":false}]
[null,null,null,null,null,null,null,null,null,null,null,null,null,null,null,null,null,null,null,null,null,null,null,{"$f":"validaEmail(D477)","v":false},{"$f":"validaEmail(H477)","v":false}]
[null,null,null,null,null,null,null,null,null,null,null,null,null,null,null,null,null,null,null,null,null,null,null,{"$f":"validaEmail(D478)","v":false},{"$f":"validaEmail(H478)","v":false}]
[null,null,null,null,null,null,null,null,null,null,null,null,null,null,null,null,null,null,null,null,null,null,null,{"$f":"validaEmail(D479)","v":false},{"$f":"validaEmail(H479)","v":false}]
[null,null,null,null,null,null,null,null,null,null,null,null,null,null,null,null,null,null,null,null,null,null,null,{"$f":"validaEmail(D480)","v":false},{"$f":"validaEmail(H480)","v":false}]
[null,null,null,null,null,null,null,null,null,null,null,null,null,null,null,null,null,null,null,null,null,null,null,{"$f":"validaEmail(D481)","v":false},{"$f":"validaEmail(H481)","v":false}]
[null,null,null,null,null,null,null,null,null,null,null,null,null,null,null,null,null,null,null,null,null,null,null,{"$f":"validaEmail(D482)","v":false},{"$f":"validaEmail(H482)","v":false}]
[null,null,null,null,null,null,null,null,null,null,null,null,null,null,null,null,null,null,null,null,null,null,null,{"$f":"validaEmail(D483)","v":false},{"$f":"validaEmail(H483)","v":false}]
[null,null,null,null,null,null,null,null,null,null,null,null,null,null,null,null,null,null,null,null,null,null,null,{"$f":"validaEmail(D484)","v":false},{"$f":"validaEmail(H484)","v":false}]
[null,null,null,null,null,null,null,null,null,null,null,null,null,null,null,null,null,null,null,null,null,null,null,{"$f":"validaEmail(D485)","v":false},{"$f":"validaEmail(H485)","v":false}]
[null,null,null,null,null,null,null,null,null,null,null,null,null,null,null,null,null,null,null,null,null,null,null,{"$f":"validaEmail(D486)","v":false},{"$f":"validaEmail(H486)","v":false}]
[null,null,null,null,null,null,null,null,null,null,null,null,null,null,null,null,null,null,null,null,null,null,null,{"$f":"validaEmail(D487)","v":false},{"$f":"validaEmail(H487)","v":false}]
[null,null,null,null,null,null,null,null,null,null,null,null,null,null,null,null,null,null,null,null,null,null,null,{"$f":"validaEmail(D488)","v":false},{"$f":"validaEmail(H488)","v":false}]
[null,null,null,null,null,null,null,null,null,null,null,null,null,null,null,null,null,null,null,null,null,null,null,{"$f":"validaEmail(D489)","v":false},{"$f":"validaEmail(H489)","v":false}]
[null,null,null,null,null,null,null,null,null,null,null,null,null,null,null,null,null,null,null,null,null,null,null,{"$f":"validaEmail(D490)","v":false},{"$f":"validaEmail(H490)","v":false}]
[null,null,null,null,null,null,null,null,null,null,null,null,null,null,null,null,null,null,null,null,null,null,null,{"$f":"validaEmail(D491)","v":false},{"$f":"validaEmail(H491)","v":false}]
[null,null,null,null,null,null,null,null,null,null,null,null,null,null,null,null,null,null,null,null,null,null,null,{"$f":"validaEmail(D492)","v":false},{"$f":"validaEmail(H492)","v":false}]
[null,null,null,null,null,null,null,null,null,null,null,null,null,null,null,null,null,null,null,null,null,null,null,{"$f":"validaEmail(D493)","v":false},{"$f":"validaEmail(H493)","v":false}]
[null,null,null,null,null,null,null,null,null,null,null,null,null,null,null,null,null,null,null,null,null,null,null,{"$f":"validaEmail(D494)","v":false},{"$f":"validaEmail(H494)","v":false}]
[null,null,null,null,null,null,null,null,null,null,null,null,null,null,null,null,null,null,null,null,null,null,null,{"$f":"validaEmail(D495)","v":false},{"$f":"validaEmail(H495)","v":false}]
[null,null,null,null,null,null,null,null,null,null,null,null,null,null,null,null,null,null,null,null,null,null,null,{"$f":"validaEmail(D496)","v":false},{"$f":"validaEmail(H496)","v":false}]
[null,null,null,null,null,null,null,null,null,null,null,null,null,null,null,null,null,null,null,null,null,null,null,{"$f":"validaEmail(D497)","v":false},{"$f":"validaEmail(H497)","v":false}]
[null,null,null,null,null,null,null,null,null,null,null,null,null,null,null,null,null,null,null,null,null,null,null,{"$f":"validaEmail(D498)","v":false},{"$f":"validaEmail(H498)","v":false}]
[null,null,null,null,null,null,null,null,null,null,null,null,null,null,null,null,null,null,null,null,null,null,null,{"$f":"validaEmail(D499)","v":false},{"$f":"validaEmail(H499)","v":false}]
[null,null,null,null,null,null,null,null,null,null,null,null,null,null,null,null,null,null,null,null,null,null,null,{"$f":"validaEmail(D500)","v":false},{"$f":"validaEmail(H500)","v":false}]
[null,null,null,null,null,null,null,null,null,null,null,null,null,null,null,null,null,null,null,null,null,null,null,{"$f":"validaEmail(D501)","v":false},{"$f":"validaEmail(H501)","v":false}]
[null,null,null,null,null,null,null,null,null,null,null,null,null,null,null,null,null,null,null,null,null,null,null,{"$f":"validaEmail(D502)","v":false},{"$f":"validaEmail(H502)","v":false}]
[null,null,null,null,null,null,null,null,null,null,null,null,null,null,null,null,null,null,null,null,null,null,null,{"$f":"validaEmail(D503)","v":false},{"$f":"validaEmail(H503)","v":false}]
[null,null,null,null,null,null,null,null,null,null,null,null,null,null,null,null,null,null,null,null,null,null,null,{"$f":"validaEmail(D504)","v":false},{"$f":"validaEmail(H504)","v":false}]
[null,null,null,null,null,null,null,null,null,null,null,null,null,null,null,null,null,null,null,null,null,null,null,{"$f":"validaEmail(D505)","v":false},{"$f":"validaEmail(H505)","v":false}]
[null,null,null,null,null,null,null,null,null,null,null,null,null,null,null,null,null,null,null,null,null,null,null,{"$f":"validaEmail(D506)","v":false},{"$f":"validaEmail(H506)","v":false}]

{"sheet":"LISTAS","index":1,"n_rows":1120,"n_cols":6,"rows_kept":1120,"cut":false,"hidden":true,"merged":[]}
["DEPARTAMENTO","MUNICIPIO",null,null,null,"DEPARTAMENTO"]
["ANTIOQUIA","MEDELLÍN",null,null,null,"AMAZONAS"]
["ANTIOQUIA","ABEJORRAL",null,null,null,"ANTIOQUIA"]
["ANTIOQUIA","ABRIAQUÍ",null,null,null,"ARAUCA"]
["ANTIOQUIA","ALEJANDRÍA",null,null,null,"ATLÁNTICO"]
["ANTIOQUIA","AMAGÁ",null,null,null,"BOGOTÁ"]
["ANTIOQUIA","AMALFI",null,null,null,"BOLÍVAR"]
["ANTIOQUIA","ANDES",null,null,null,"BOYACÁ"]
["ANTIOQUIA","ANGELÓPOLIS",null,null,null,"CALDAS"]
["ANTIOQUIA","ANGOSTURA",null,null,null,"CAQUETÁ"]
["ANTIOQUIA","ANORÍ",null,null,null,"CASANARE"]
["ANTIOQUIA","SANTA FÉ DE ANTIOQUIA",null,null,null,"CAUCA"]
["ANTIOQUIA","ANZÁ",null,null,null,"CESAR"]
["ANTIOQUIA","APARTADÓ",null,null,null,"CHOCÓ"]
["ANTIOQUIA","ARBOLETES",null,null,null,"CÓRDOBA"]
["ANTIOQUIA","ARGELIA",null,null,null,"CUNDINAMARCA"]
["ANTIOQUIA","ARMENIA",null,null,null,"GUAINÍA"]
["ANTIOQUIA","BARBOSA",null,null,null,"GUAVIARE"]
["ANTIOQUIA","BELMIRA",null,null,null,"HUILA"]
["ANTIOQUIA","BELLO",null,null,null,"LA GUAJIRA"]
["ANTIOQUIA","BETANIA",null,null,null,"MAGDALENA"]
["ANTIOQUIA","BETULIA",null,null,null,"META"]
["ANTIOQUIA","CIUDAD BOLÍVAR",null,null,null,"NARIÑO"]
["ANTIOQUIA","BRICEÑO",null,null,null,"NORTE DE SANTANDER"]
["ANTIOQUIA","BURITICÁ",null,null,null,"PUTUMAYO"]
["ANTIOQUIA","CÁCERES",null,null,null,"QUINDÍO"]
["ANTIOQUIA","CAICEDO",null,null,null,"RISARALDA"]
["ANTIOQUIA","CALDAS",null,null,null,"SANTANDER"]
["ANTIOQUIA","CAMPAMENTO",null,null,null,"SUCRE"]
["ANTIOQUIA","CAÑASGORDAS",null,null,null,"TOLIMA"]
["ANTIOQUIA","CARACOLÍ",null,null,null,"VALLE DEL CAUCA"]
["ANTIOQUIA","CARAMANTA",null,null,null,"VAUPÉS"]
["ANTIOQUIA","CAREPA",null,null,null,"VICHADA"]
["ANTIOQUIA","EL CARMEN DE VIBORAL"]
["ANTIOQUIA","CAROLINA"]
["ANTIOQUIA","CAUCASIA"]
["ANTIOQUIA","CHIGORODÓ"]
["ANTIOQUIA","CISNEROS"]
["ANTIOQUIA","COCORNÁ"]
["ANTIOQUIA","CONCEPCIÓN"]
["ANTIOQUIA","CONCORDIA"]
["ANTIOQUIA","COPACABANA"]
["ANTIOQUIA","DABEIBA"]
["ANTIOQUIA","DONMATÍAS"]
["ANTIOQUIA","EBÉJICO"]
["ANTIOQUIA","EL BAGRE"]
["ANTIOQUIA","ENTRERRÍOS"]
["ANTIOQUIA","ENVIGADO"]
["ANTIOQUIA","FREDONIA"]
["ANTIOQUIA","FRONTINO"]
["ANTIOQUIA","GIRALDO"]
["ANTIOQUIA","GIRARDOTA"]
["ANTIOQUIA","GÓMEZ PLATA"]
["ANTIOQUIA","GRANADA"]
["ANTIOQUIA","GUADALUPE"]
["ANTIOQUIA","GUARNE"]
["ANTIOQUIA","GUATAPÉ"]
["ANTIOQUIA","HELICONIA"]
["ANTIOQUIA","HISPANIA"]
["ANTIOQUIA","ITAGÜÍ"]
["ANTIOQUIA","ITUANGO"]
["ANTIOQUIA","JARDÍN"]
["ANTIOQUIA","JERICÓ"]
["ANTIOQUIA","LA CEJA"]
["ANTIOQUIA","LA ESTRELLA"]
["ANTIOQUIA","LA PINTADA"]
["ANTIOQUIA","LA UNIÓN"]
["ANTIOQUIA","LIBORINA"]
["ANTIOQUIA","MACEO"]
["ANTIOQUIA","MARINILLA"]
["ANTIOQUIA","MONTEBELLO"]
["ANTIOQUIA","MURINDÓ"]
["ANTIOQUIA","MUTATÁ"]
["ANTIOQUIA","NARIÑO"]
["ANTIOQUIA","NECOCLÍ"]
["ANTIOQUIA","NECHÍ"]
["ANTIOQUIA","OLAYA"]
["ANTIOQUIA","PEÑOL"]
["ANTIOQUIA","PEQUE"]
["ANTIOQUIA","PUEBLORRICO"]
["ANTIOQUIA","PUERTO BERRÍO"]
["ANTIOQUIA","PUERTO NARE"]
["ANTIOQUIA","PUERTO TRIUNFO"]
["ANTIOQUIA","REMEDIOS"]
["ANTIOQUIA","RETIRO"]
["ANTIOQUIA","RIONEGRO"]
["ANTIOQUIA","SABANALARGA"]
["ANTIOQUIA","SABANETA"]
["ANTIOQUIA","SALGAR"]
["ANTIOQUIA","SAN ANDRÉS DE CUERQUÍA"]
["ANTIOQUIA","SAN CARLOS"]
["ANTIOQUIA","SAN FRANCISCO"]
["ANTIOQUIA","SAN JERÓNIMO"]
["ANTIOQUIA","SAN JOSÉ DE LA MONTAÑA"]
["ANTIOQUIA","SAN JUAN DE URABÁ"]
["ANTIOQUIA","SAN LUIS"]
["ANTIOQUIA","SAN PEDRO DE LOS MILAGROS"]
["ANTIOQUIA","SAN PEDRO DE URABÁ"]
["ANTIOQUIA","SAN RAFAEL"]
["ANTIOQUIA","SAN ROQUE"]
["ANTIOQUIA","SAN VICENTE FERRER"]
["ANTIOQUIA","SANTA BÁRBARA"]
["ANTIOQUIA","SANTA ROSA DE OSOS"]
["ANTIOQUIA","SANTO DOMINGO"]
["ANTIOQUIA","EL SANTUARIO"]
["ANTIOQUIA","SEGOVIA"]
["ANTIOQUIA","SONSÓN"]
["ANTIOQUIA","SOPETRÁN"]
["ANTIOQUIA","TÁMESIS"]
["ANTIOQUIA","TARAZÁ"]
["ANTIOQUIA","TARSO"]
["ANTIOQUIA","TITIRIBÍ"]
["ANTIOQUIA","TOLEDO"]
["ANTIOQUIA","TURBO"]
["ANTIOQUIA","URAMITA"]
["ANTIOQUIA","URRAO"]
["ANTIOQUIA","VALDIVIA"]
["ANTIOQUIA","VALPARAÍSO"]
["ANTIOQUIA","VEGACHÍ"]
["ANTIOQUIA","VENECIA"]
["ANTIOQUIA","VIGÍA DEL FUERTE"]
["ANTIOQUIA","YALÍ"]
["ANTIOQUIA","YARUMAL"]
["ANTIOQUIA","YOLOMBÓ"]
["ANTIOQUIA","YONDÓ"]
["ANTIOQUIA","ZARAGOZA"]
["ATLÁNTICO","BARRANQUILLA"]
["ATLÁNTICO","BARANOA"]
["ATLÁNTICO","CAMPO DE LA CRUZ"]
["ATLÁNTICO","CANDELARIA"]
["ATLÁNTICO","GALAPA"]
["ATLÁNTICO","JUAN DE ACOSTA"]
["ATLÁNTICO","LURUACO"]
["ATLÁNTICO","MALAMBO"]
["ATLÁNTICO","MANATÍ"]
["ATLÁNTICO","PALMAR DE VARELA"]
["ATLÁNTICO","PIOJÓ"]
["ATLÁNTICO","POLONUEVO"]
["ATLÁNTICO","PONEDERA"]
["ATLÁNTICO","PUERTO COLOMBIA"]
["ATLÁNTICO","REPELÓN"]
["ATLÁNTICO","SABANAGRANDE"]
["ATLÁNTICO","SABANALARGA"]
["ATLÁNTICO","SANTA LUCÍA"]
["ATLÁNTICO","SANTO TOMÁS"]
["ATLÁNTICO","SOLEDAD"]
["ATLÁNTICO","SUAN"]
["ATLÁNTICO","TUBARÁ"]
["ATLÁNTICO","USIACURÍ"]
["BOGOTÁ","BOGOTÁ, D.C."]
["BOLÍVAR","CARTAGENA DE INDIAS"]
["BOLÍVAR","ACHÍ"]
["BOLÍVAR","ALTOS DEL ROSARIO"]
["BOLÍVAR","ARENAL"]
["BOLÍVAR","ARJONA"]
["BOLÍVAR","ARROYOHONDO"]
["BOLÍVAR","BARRANCO DE LOBA"]
["BOLÍVAR","CALAMAR"]
["BOLÍVAR","CANTAGALLO"]
["BOLÍVAR","CICUCO"]
["BOLÍVAR","CÓRDOBA"]
["BOLÍVAR","CLEMENCIA"]
["BOLÍVAR","EL CARMEN DE BOLÍVAR"]
["BOLÍVAR","EL GUAMO"]
["BOLÍVAR","EL PEÑÓN"]
["BOLÍVAR","HATILLO DE LOBA"]
["BOLÍVAR","MAGANGUÉ"]
["BOLÍVAR","MAHATES"]
["BOLÍVAR","MARGARITA"]
["BOLÍVAR","MARÍA LA BAJA"]
["BOLÍVAR","MONTECRISTO"]
["BOLÍVAR","SANTA CRUZ DE MOMPOX"]
["BOLÍVAR","MORALES"]
["BOLÍVAR","NOROSÍ"]
["BOLÍVAR","PINILLOS"]
["BOLÍVAR","REGIDOR"]
["BOLÍVAR","RÍO VIEJO"]
["BOLÍVAR","SAN CRISTÓBAL"]
["BOLÍVAR","SAN ESTANISLAO"]
["BOLÍVAR","SAN FERNANDO"]
["BOLÍVAR","SAN JACINTO"]
["BOLÍVAR","SAN JACINTO DEL CAUCA"]
["BOLÍVAR","SAN JUAN NEPOMUCENO"]
["BOLÍVAR","SAN MARTÍN DE LOBA"]
["BOLÍVAR","SAN PABLO"]
["BOLÍVAR","SANTA CATALINA"]
["BOLÍVAR","SANTA ROSA"]
["BOLÍVAR","SANTA ROSA DEL SUR"]
["BOLÍVAR","SIMITÍ"]
["BOLÍVAR","SOPLAVIENTO"]
["BOLÍVAR","TALAIGUA NUEVO"]
["BOLÍVAR","TIQUISIO"]
["BOLÍVAR","TURBACO"]
["BOLÍVAR","TURBANÁ"]
["BOLÍVAR","VILLANUEVA"]
["BOLÍVAR","ZAMBRANO"]
["BOYACÁ","TUNJA"]
["BOYACÁ","ALMEIDA"]
["BOYACÁ","AQUITANIA"]
["BOYACÁ","ARCABUCO"]
["BOYACÁ","BELÉN"]
["BOYACÁ","BERBEO"]
["BOYACÁ","BETÉITIVA"]
["BOYACÁ","BOAVITA"]
["BOYACÁ","BOYACÁ"]
["BOYACÁ","BRICEÑO"]
["BOYACÁ","BUENAVISTA"]
["BOYACÁ","BUSBANZÁ"]
["BOYACÁ","CALDAS"]
["BOYACÁ","CAMPOHERMOSO"]
["BOYACÁ","CERINZA"]
["BOYACÁ","CHINAVITA"]
["BOYACÁ","CHIQUINQUIRÁ"]
["BOYACÁ","CHISCAS"]
["BOYACÁ","CHITA"]
["BOYACÁ","CHITARAQUE"]
["BOYACÁ","CHIVATÁ"]
["BOYACÁ","CIÉNEGA"]
["BOYACÁ","CÓMBITA"]
["BOYACÁ","COPER"]
["BOYACÁ","CORRALES"]
["BOYACÁ","COVARACHÍA"]
["BOYACÁ","CUBARÁ"]
["BOYACÁ","CUCAITA"]
["BOYACÁ","CUÍTIVA"]
["BOYACÁ","CHÍQUIZA"]
["BOYACÁ","CHIVOR"]
["BOYACÁ","DUITAMA"]
["BOYACÁ","EL COCUY"]
["BOYACÁ","EL ESPINO"]
["BOYACÁ","FIRAVITOBA"]
["BOYACÁ","FLORESTA"]
["BOYACÁ","GACHANTIVÁ"]
["BOYACÁ","GÁMEZA"]
["BOYACÁ","GARAGOA"]
["BOYACÁ","GUACAMAYAS"]
["BOYACÁ","GUATEQUE"]
["BOYACÁ","GUAYATÁ"]
["BOYACÁ","GÜICÁN DE LA SIERRA"]
["BOYACÁ","IZA"]
["BOYACÁ","JENESANO"]
["BOYACÁ","JERICÓ"]
["BOYACÁ","LABRANZAGRANDE"]
["BOYACÁ","LA CAPILLA"]
["BOYACÁ","LA VICTORIA"]
["BOYACÁ","LA UVITA"]
["BOYACÁ","VILLA DE LEYVA"]
["BOYACÁ","MACANAL"]
["BOYACÁ","MARIPÍ"]
["BOYACÁ","MIRAFLORES"]
["BOYACÁ","MONGUA"]
["BOYACÁ","MONGUÍ"]
["BOYACÁ","MONIQUIRÁ"]
["BOYACÁ","MOTAVITA"]
["BOYACÁ","MUZO"]
["BOYACÁ","NOBSA"]
["BOYACÁ","NUEVO COLÓN"]
["BOYACÁ","OICATÁ"]
["BOYACÁ","OTANCHE"]
["BOYACÁ","PACHAVITA"]
["BOYACÁ","PÁEZ"]
["BOYACÁ","PAIPA"]
["BOYACÁ","PAJARITO"]
["BOYACÁ","PANQUEBA"]
["BOYACÁ","PAUNA"]
["BOYACÁ","PAYA"]
["BOYACÁ","PAZ DE RÍO"]
["BOYACÁ","PESCA"]
["BOYACÁ","PISBA"]
["BOYACÁ","PUERTO BOYACÁ"]
["BOYACÁ","QUÍPAMA"]
["BOYACÁ","RAMIRIQUÍ"]
["BOYACÁ","RÁQUIRA"]
["BOYACÁ","RONDÓN"]
["BOYACÁ","SABOYÁ"]
["BOYACÁ","SÁCHICA"]
["BOYACÁ","SAMACÁ"]
["BOYACÁ","SAN EDUARDO"]
["BOYACÁ","SAN JOSÉ DE PARE"]
["BOYACÁ","SAN LUIS DE GACENO"]
["BOYACÁ","SAN MATEO"]
["BOYACÁ","SAN MIGUEL DE SEMA"]
["BOYACÁ","SAN PABLO DE BORBUR"]
["BOYACÁ","SANTANA"]
["BOYACÁ","SANTA MARÍA"]
["BOYACÁ","SANTA ROSA DE VITERBO"]
["BOYACÁ","SANTA SOFÍA"]
["BOYACÁ","SATIVANORTE"]
["BOYACÁ","SATIVASUR"]
["BOYACÁ","SIACHOQUE"]
["BOYACÁ","SOATÁ"]
["BOYACÁ","SOCOTÁ"]
["BOYACÁ","SOCHA"]
["BOYACÁ","SOGAMOSO"]
["BOYACÁ","SOMONDOCO"]
["BOYACÁ","SORA"]
["BOYACÁ","SOTAQUIRÁ"]
["BOYACÁ","SORACÁ"]
["BOYACÁ","SUSACÓN"]
["BOYACÁ","SUTAMARCHÁN"]
["BOYACÁ","SUTATENZA"]
["BOYACÁ","TASCO"]
["BOYACÁ","TENZA"]
["BOYACÁ","TIBANÁ"]
["BOYACÁ","TIBASOSA"]
["BOYACÁ","TINJACÁ"]
["BOYACÁ","TIPACOQUE"]
["BOYACÁ","TOCA"]
["BOYACÁ","TOGÜÍ"]
["BOYACÁ","TÓPAGA"]
["BOYACÁ","TOTA"]
["BOYACÁ","TUNUNGUÁ"]
["BOYACÁ","TURMEQUÉ"]
["BOYACÁ","TUTA"]
["BOYACÁ","TUTAZÁ"]
["BOYACÁ","ÚMBITA"]
["BOYACÁ","VENTAQUEMADA"]
["BOYACÁ","VIRACACHÁ"]
["BOYACÁ","ZETAQUIRA"]
["CALDAS","MANIZALES"]
["CALDAS","AGUADAS"]
["CALDAS","ANSERMA"]
["CALDAS","ARANZAZU"]
["CALDAS","BELALCÁZAR"]
["CALDAS","CHINCHINÁ"]
["CALDAS","FILADELFIA"]
["CALDAS","LA DORADA"]
["CALDAS","LA MERCED"]
["CALDAS","MANZANARES"]
["CALDAS","MARMATO"]
["CALDAS","MARQUETALIA"]
["CALDAS","MARULANDA"]
["CALDAS","NEIRA"]
["CALDAS","NORCASIA"]
["CALDAS","PÁCORA"]
["CALDAS","PALESTINA"]
["CALDAS","PENSILVANIA"]
["CALDAS","RIOSUCIO"]
["CALDAS","RISARALDA"]
["CALDAS","SALAMINA"]
["CALDAS","SAMANÁ"]
["CALDAS","SAN JOSÉ"]
["CALDAS","SUPÍA"]
["CALDAS","VICTORIA"]
["CALDAS","VILLAMARÍA"]
["CALDAS","VITERBO"]
["CAQUETÁ","FLORENCIA"]
["CAQUETÁ","ALBANIA"]
["CAQUETÁ","BELÉN DE LOS ANDAQUÍES"]
["CAQUETÁ","CARTAGENA DEL CHAIRÁ"]
["CAQUETÁ","CURILLO"]
["CAQUETÁ","EL DONCELLO"]
["CAQUETÁ","EL PAUJÍL"]
["CAQUETÁ","LA MONTAÑITA"]
["CAQUETÁ","MILÁN"]
["CAQUETÁ","MORELIA"]
["CAQUETÁ","PUERTO RICO"]
["CAQUETÁ","SAN JOSÉ DEL FRAGUA"]
["CAQUETÁ","SAN VICENTE DEL CAGUÁN"]
["CAQUETÁ","SOLANO"]
["CAQUETÁ","SOLITA"]
["CAQUETÁ","VALPARAÍSO"]
["CAUCA","POPAYÁN"]
["CAUCA","ALMAGUER"]
["CAUCA","ARGELIA"]
["CAUCA","BALBOA"]
["CAUCA","BOLÍVAR"]
["CAUCA","BUENOS AIRES"]
["CAUCA","CAJIBÍO"]
["CAUCA","CALDONO"]
["CAUCA","CALOTO"]
["CAUCA","CORINTO"]
["CAUCA","EL TAMBO"]
["CAUCA","FLORENCIA"]
["CAUCA","GUACHENÉ"]
["CAUCA","GUAPI"]
["CAUCA","INZÁ"]
["CAUCA","JAMBALÓ"]
["CAUCA","LA SIERRA"]
["CAUCA","LA VEGA"]
["CAUCA","LÓPEZ DE MICAY"]
["CAUCA","MERCADERES"]
["CAUCA","MIRANDA"]
["CAUCA","MORALES"]
["CAUCA","PADILLA"]
["CAUCA","PÁEZ"]
["CAUCA","PATÍA"]
["CAUCA","PIAMONTE"]
["CAUCA","PIENDAMÓ - TUNÍA"]
["CAUCA","PUERTO TEJADA"]
["CAUCA","PURACÉ"]
["CAUCA","ROSAS"]
["CAUCA","SAN SEBASTIÁN"]
["CAUCA","SANTANDER DE QUILICHAO"]
["CAUCA","SANTA ROSA"]
["CAUCA","SILVIA"]
["CAUCA","SOTARÁ PAISPAMBA"]
["CAUCA","SUÁREZ"]
["CAUCA","SUCRE"]
["CAUCA","TIMBÍO"]
["CAUCA","TIMBIQUÍ"]
["CAUCA","TORIBÍO"]
["CAUCA","TOTORÓ"]
["CAUCA","VILLA RICA"]
["CESAR","VALLEDUPAR"]
["CESAR","AGUACHICA"]
["CESAR","AGUSTÍN CODAZZI"]
["CESAR","ASTREA"]
["CESAR","BECERRIL"]
["CESAR","BOSCONIA"]
["CESAR","CHIMICHAGUA"]
["CESAR","CHIRIGUANÁ"]
["CESAR","CURUMANÍ"]
["CESAR","EL COPEY"]
["CESAR","EL PASO"]
["CESAR","GAMARRA"]
["CESAR","GONZÁLEZ"]
["CESAR","LA GLORIA"]
["CESAR","LA JAGUA DE IBIRICO"]
["CESAR","MANAURE BALCÓN DEL CESAR"]
["CESAR","PAILITAS"]
["CESAR","PELAYA"]
["CESAR","PUEBLO BELLO"]
["CESAR","RÍO DE ORO"]
["CESAR","LA PAZ"]
["CESAR","SAN ALBERTO"]
["CESAR","SAN DIEGO"]
["CESAR","SAN MARTÍN"]
["CESAR","TAMALAMEQUE"]
["CÓRDOBA","MONTERÍA"]
["CÓRDOBA","AYAPEL"]
["CÓRDOBA","BUENAVISTA"]
["CÓRDOBA","CANALETE"]
["CÓRDOBA","CERETÉ"]
["CÓRDOBA","CHIMÁ"]
["CÓRDOBA","CHINÚ"]
["CÓRDOBA","CIÉNAGA DE ORO"]
["CÓRDOBA","COTORRA"]
["CÓRDOBA","LA APARTADA"]
["CÓRDOBA","LORICA"]
["CÓRDOBA","LOS CÓRDOBAS"]
["CÓRDOBA","MOMIL"]
["CÓRDOBA","MONTELÍBANO"]
["CÓRDOBA","MOÑITOS"]
["CÓRDOBA","PLANETA RICA"]
["CÓRDOBA","PUEBLO NUEVO"]
["CÓRDOBA","PUERTO ESCONDIDO"]
["CÓRDOBA","PUERTO LIBERTADOR"]
["CÓRDOBA","PURÍSIMA DE LA CONCEPCIÓN"]
["CÓRDOBA","SAHAGÚN"]
["CÓRDOBA","SAN ANDRÉS DE SOTAVENTO"]
["CÓRDOBA","SAN ANTERO"]
["CÓRDOBA","SAN BERNARDO DEL VIENTO"]
["CÓRDOBA","SAN CARLOS"]
["CÓRDOBA","SAN JOSÉ DE URÉ"]
["CÓRDOBA","SAN PELAYO"]
["CÓRDOBA","TIERRALTA"]
["CÓRDOBA","TUCHÍN"]
["CÓRDOBA","VALENCIA"]
["CUNDINAMARCA","AGUA DE DIOS"]
["CUNDINAMARCA","ALBÁN"]
["CUNDINAMARCA","ANAPOIMA"]
["CUNDINAMARCA","ANOLAIMA"]
["CUNDINAMARCA","ARBELÁEZ"]
["CUNDINAMARCA","BELTRÁN"]
["CUNDINAMARCA","BITUIMA"]
["CUNDINAMARCA","BOJACÁ"]
["CUNDINAMARCA","CABRERA"]
["CUNDINAMARCA","CACHIPAY"]
["CUNDINAMARCA","CAJICÁ"]
["CUNDINAMARCA","CAPARRAPÍ"]
["CUNDINAMARCA","CÁQUEZA"]
["CUNDINAMARCA","CARMEN DE CARUPA"]
["CUNDINAMARCA","CHAGUANÍ"]
["CUNDINAMARCA","CHÍA"]
["CUNDINAMARCA","CHIPAQUE"]
["CUNDINAMARCA","CHOACHÍ"]
["CUNDINAMARCA","CHOCONTÁ"]
["CUNDINAMARCA","COGUA"]
["CUNDINAMARCA","COTA"]
["CUNDINAMARCA","CUCUNUBÁ"]
["CUNDINAMARCA","EL COLEGIO"]
["CUNDINAMARCA","EL PEÑÓN"]
["CUNDINAMARCA","EL ROSAL"]
["CUNDINAMARCA","FACATATIVÁ"]
["CUNDINAMARCA","FÓMEQUE"]
["CUNDINAMARCA","FOSCA"]
["CUNDINAMARCA","FUNZA"]
["CUNDINAMARCA","FÚQUENE"]
["CUNDINAMARCA","FUSAGASUGÁ"]
["CUNDINAMARCA","GACHALÁ"]
["CUNDINAMARCA","GACHANCIPÁ"]
["CUNDINAMARCA","GACHETÁ"]
["CUNDINAMARCA","GAMA"]
["CUNDINAMARCA","GIRARDOT"]
["CUNDINAMARCA","GRANADA"]
["CUNDINAMARCA","GUACHETÁ"]
["CUNDINAMARCA","GUADUAS"]
["CUNDINAMARCA","GUASCA"]
["CUNDINAMARCA","GUATAQUÍ"]
["CUNDINAMARCA","GUATAVITA"]
["CUNDINAMARCA","GUAYABAL DE SÍQUIMA"]
["CUNDINAMARCA","GUAYABETAL"]
["CUNDINAMARCA","GUTIÉRREZ"]
["CUNDINAMARCA","JERUSALÉN"]
["CUNDINAMARCA","JUNÍN"]
["CUNDINAMARCA","LA CALERA"]
["CUNDINAMARCA","LA MESA"]
["CUNDINAMARCA","LA PALMA"]
["CUNDINAMARCA","LA PEÑA"]
["CUNDINAMARCA","LA VEGA"]
["CUNDINAMARCA","LENGUAZAQUE"]
["CUNDINAMARCA","MACHETÁ"]
["CUNDINAMARCA","MADRID"]
["CUNDINAMARCA","MANTA"]
["CUNDINAMARCA","MEDINA"]
["CUNDINAMARCA","MOSQUERA"]
["CUNDINAMARCA","NARIÑO"]
["CUNDINAMARCA","NEMOCÓN"]
["CUNDINAMARCA","NILO"]
["CUNDINAMARCA","NIMAIMA"]
["CUNDINAMARCA","NOCAIMA"]
["CUNDINAMARCA","VENECIA"]
["CUNDINAMARCA","PACHO"]
["CUNDINAMARCA","PAIME"]
["CUNDINAMARCA","PANDI"]
["CUNDINAMARCA","PARATEBUENO"]
["CUNDINAMARCA","PASCA"]
["CUNDINAMARCA","PUERTO SALGAR"]
["CUNDINAMARCA","PULÍ"]
["CUNDINAMARCA","QUEBRADANEGRA"]
["CUNDINAMARCA","QUETAME"]
["CUNDINAMARCA","QUIPILE"]
["CUNDINAMARCA","APULO"]
["CUNDINAMARCA","RICAURTE"]
["CUNDINAMARCA","SAN ANTONIO DEL TEQUENDAMA"]
["CUNDINAMARCA","SAN BERNARDO"]
["CUNDINAMARCA","SAN CAYETANO"]
["CUNDINAMARCA","SAN FRANCISCO"]
["CUNDINAMARCA","SAN JUAN DE RIOSECO"]
["CUNDINAMARCA","SASAIMA"]
["CUNDINAMARCA","SESQUILÉ"]
["CUNDINAMARCA","SIBATÉ"]
["CUNDINAMARCA","SILVANIA"]
["CUNDINAMARCA","SIMIJACA"]
["CUNDINAMARCA","SOACHA"]
["CUNDINAMARCA","SOPÓ"]
["CUNDINAMARCA","SUBACHOQUE"]
["CUNDINAMARCA","SUESCA"]
["CUNDINAMARCA","SUPATÁ"]
["CUNDINAMARCA","SUSA"]
["CUNDINAMARCA","SUTATAUSA"]
["CUNDINAMARCA","TABIO"]
["CUNDINAMARCA","TAUSA"]
["CUNDINAMARCA","TENA"]
["CUNDINAMARCA","TENJO"]
["CUNDINAMARCA","TIBACUY"]
["CUNDINAMARCA","TIBIRITA"]
["CUNDINAMARCA","TOCAIMA"]
["CUNDINAMARCA","TOCANCIPÁ"]
["CUNDINAMARCA","TOPAIPÍ"]
["CUNDINAMARCA","UBALÁ"]
["CUNDINAMARCA","UBAQUE"]
["CUNDINAMARCA","VILLA DE SAN DIEGO DE UBATÉ"]
["CUNDINAMARCA","UNE"]
["CUNDINAMARCA","ÚTICA"]
["CUNDINAMARCA","VERGARA"]
["CUNDINAMARCA","VIANÍ"]
["CUNDINAMARCA","VILLAGÓMEZ"]
["CUNDINAMARCA","VILLAPINZÓN"]
["CUNDINAMARCA","VILLETA"]
["CUNDINAMARCA","VIOTÁ"]
["CUNDINAMARCA","YACOPÍ"]
["CUNDINAMARCA","ZIPACÓN"]
["CUNDINAMARCA","ZIPAQUIRÁ"]
["CHOCÓ","QUIBDÓ"]
["CHOCÓ","ACANDÍ"]
["CHOCÓ","ALTO BAUDÓ"]
["CHOCÓ","ATRATO"]
["CHOCÓ","BAGADÓ"]
["CHOCÓ","BAHÍA SOLANO"]
["CHOCÓ","BAJO BAUDÓ"]
["CHOCÓ","BOJAYÁ"]
["CHOCÓ","EL CANTÓN DEL SAN PABLO"]
["CHOCÓ","CARMEN DEL DARIÉN"]
["CHOCÓ","CÉRTEGUI"]
["CHOCÓ","CONDOTO"]
["CHOCÓ","EL CARMEN DE ATRATO"]
["CHOCÓ","EL LITORAL DEL SAN JUAN"]
["CHOCÓ","ISTMINA"]
["CHOCÓ","JURADÓ"]
["CHOCÓ","LLORÓ"]
["CHOCÓ","MEDIO ATRATO"]
["CHOCÓ","MEDIO BAUDÓ"]
["CHOCÓ","MEDIO SAN JUAN"]
["CHOCÓ","NÓVITA"]
["CHOCÓ","NUQUÍ"]
["CHOCÓ","RÍO IRÓ"]
["CHOCÓ","RÍO QUITO"]
["CHOCÓ","RIOSUCIO"]
["CHOCÓ","SAN JOSÉ DEL PALMAR"]
["CHOCÓ","SIPÍ"]
["CHOCÓ","TADÓ"]
["CHOCÓ","UNGUÍA"]
["CHOCÓ","UNIÓN PANAMERICANA"]
["HUILA","NEIVA"]
["HUILA","ACEVEDO"]
["HUILA","AGRADO"]
["HUILA","AIPE"]
["HUILA","ALGECIRAS"]
["HUILA","ALTAMIRA"]
["HUILA","BARAYA"]
["HUILA","CAMPOALEGRE"]
["HUILA","COLOMBIA"]
["HUILA","ELÍAS"]
["HUILA","GARZÓN"]
["HUILA","GIGANTE"]
["HUILA","GUADALUPE"]
["HUILA","HOBO"]
["HUILA","ÍQUIRA"]
["HUILA","ISNOS"]
["HUILA","LA ARGENTINA"]
["HUILA","LA PLATA"]
["HUILA","NÁTAGA"]
["HUILA","OPORAPA"]
["HUILA","PAICOL"]
["HUILA","PALERMO"]
["HUILA","PALESTINA"]
["HUILA","PITAL"]
["HUILA","PITALITO"]
["HUILA","RIVERA"]
["HUILA","SALADOBLANCO"]
["HUILA","SAN AGUSTÍN"]
["HUILA","SANTA MARÍA"]
["HUILA","SUAZA"]
["HUILA","TARQUI"]
["HUILA","TESALIA"]
["HUILA","TELLO"]
["HUILA","TERUEL"]
["HUILA","TIMANÁ"]
["HUILA","VILLAVIEJA"]
["HUILA","YAGUARÁ"]
["LA GUAJIRA","RIOHACHA"]
["LA GUAJIRA","ALBANIA"]
["LA GUAJIRA","BARRANCAS"]
["LA GUAJIRA","DIBULLA"]
["LA GUAJIRA","DISTRACCIÓN"]
["LA GUAJIRA","EL MOLINO"]
["LA GUAJIRA","FONSECA"]
["LA GUAJIRA","HATONUEVO"]
["LA GUAJIRA","LA JAGUA DEL PILAR"]
["LA GUAJIRA","MAICAO"]
["LA GUAJIRA","MANAURE"]
["LA GUAJIRA","SAN JUAN DEL CESAR"]
["LA GUAJIRA","URIBIA"]
["LA GUAJIRA","URUMITA"]
["LA GUAJIRA","VILLANUEVA"]
["MAGDALENA","SANTA MARTA"]
["MAGDALENA","ALGARROBO"]
["MAGDALENA","ARACATACA"]
["MAGDALENA","ARIGUANÍ"]
["MAGDALENA","CERRO DE SAN ANTONIO"]
["MAGDALENA","CHIVOLO"]
["MAGDALENA","CIÉNAGA"]
["MAGDALENA","CONCORDIA"]
["MAGDALENA","EL BANCO"]
["MAGDALENA","EL PIÑÓN"]
["MAGDALENA","EL RETÉN"]
["MAGDALENA","FUNDACIÓN"]
["MAGDALENA","GUAMAL"]
["MAGDALENA","NUEVA GRANADA"]
["MAGDALENA","PEDRAZA"]
["MAGDALENA","PIJIÑO DEL CARMEN"]
["MAGDALENA","PIVIJAY"]
["MAGDALENA","PLATO"]
["MAGDALENA","PUEBLOVIEJO"]
["MAGDALENA","REMOLINO"]
["MAGDALENA","SABANAS DE SAN ÁNGEL"]
["MAGDALENA","SALAMINA"]
["MAGDALENA","SAN SEBASTIÁN DE BUENAVISTA"]
["MAGDALENA","SAN ZENÓN"]
["MAGDALENA","SANTA ANA"]
["MAGDALENA","SANTA BÁRBARA DE PINTO"]
["MAGDALENA","SITIONUEVO"]
["MAGDALENA","TENERIFE"]
["MAGDALENA","ZAPAYÁN"]
["MAGDALENA","ZONA BANANERA"]
["META","VILLAVICENCIO"]
["META","ACACÍAS"]
["META","BARRANCA DE UPÍA"]
["META","CABUYARO"]
["META","CASTILLA LA NUEVA"]
["META","CUBARRAL"]
["META","CUMARAL"]
["META","EL CALVARIO"]
["META","EL CASTILLO"]
["META","EL DORADO"]
["META","FUENTE DE ORO"]
["META","GRANADA"]
["META","GUAMAL"]
["META","MAPIRIPÁN"]
["META","MESETAS"]
["META","LA MACARENA"]
["META","URIBE"]
["META","LEJANÍAS"]
["META","PUERTO CONCORDIA"]
["META","PUERTO GAITÁN"]
["META","PUERTO LÓPEZ"]
["META","PUERTO LLERAS"]
["META","PUERTO RICO"]
["META","RESTREPO"]
["META","SAN CARLOS DE GUAROA"]
["META","SAN JUAN DE ARAMA"]
["META","SAN JUANITO"]
["META","SAN MARTÍN"]
["META","VISTAHERMOSA"]
["NARIÑO","PASTO"]
["NARIÑO","ALBÁN"]
["NARIÑO","ALDANA"]
["NARIÑO","ANCUYA"]
["NARIÑO","ARBOLEDA"]
["NARIÑO","BARBACOAS"]
["NARIÑO","BELÉN"]
["NARIÑO","BUESACO"]
["NARIÑO","COLÓN"]
["NARIÑO","CONSACÁ"]
["NARIÑO","CONTADERO"]
["NARIÑO","CÓRDOBA"]
["NARIÑO","CUASPUD CARLOSAMA"]
["NARIÑO","CUMBAL"]
["NARIÑO","CUMBITARA"]
["NARIÑO","CHACHAGÜÍ"]
["NARIÑO","EL CHARCO"]
["NARIÑO","EL PEÑOL"]
["NARIÑO","EL ROSARIO"]
["NARIÑO","EL TABLÓN DE GÓMEZ"]
["NARIÑO","EL TAMBO"]
["NARIÑO","FUNES"]
["NARIÑO","GUACHUCAL"]
["NARIÑO","GUAITARILLA"]
["NARIÑO","GUALMATÁN"]
["NARIÑO","ILES"]
["NARIÑO","IMUÉS"]
["NARIÑO","IPIALES"]
["NARIÑO","LA CRUZ"]
["NARIÑO","LA FLORIDA"]
["NARIÑO","LA LLANADA"]
["NARIÑO","LA TOLA"]
["NARIÑO","LA UNIÓN"]
["NARIÑO","LEIVA"]
["NARIÑO","LINARES"]
["NARIÑO","LOS ANDES"]
["NARIÑO","MAGÜÍ"]
["NARIÑO","MALLAMA"]
["NARIÑO","MOSQUERA"]
["NARIÑO","NARIÑO"]
["NARIÑO","OLAYA HERRERA"]
["NARIÑO","OSPINA"]
["NARIÑO","FRANCISCO PIZARRO"]
["NARIÑO","POLICARPA"]
["NARIÑO","POTOSÍ"]
["NARIÑO","PROVIDENCIA"]
["NARIÑO","PUERRES"]
["NARIÑO","PUPIALES"]
["NARIÑO","RICAURTE"]
["NARIÑO","ROBERTO PAYÁN"]
["NARIÑO","SAMANIEGO"]
["NARIÑO","SANDONÁ"]
["NARIÑO","SAN BERNARDO"]
["NARIÑO","SAN LORENZO"]
["NARIÑO","SAN PABLO"]
["NARIÑO","SAN PEDRO DE CARTAGO"]
["NARIÑO","SANTA BÁRBARA"]
["NARIÑO","SANTACRUZ"]
["NARIÑO","SAPUYES"]
["NARIÑO","TAMINANGO"]
["NARIÑO","TANGUA"]
["NARIÑO","SAN ANDRÉS DE TUMACO"]
["NARIÑO","TÚQUERRES"]
["NARIÑO","YACUANQUER"]
["NORTE DE SANTANDER","SAN JOSÉ DE CÚCUTA"]
["NORTE DE SANTANDER","ÁBREGO"]
["NORTE DE SANTANDER","ARBOLEDAS"]
["NORTE DE SANTANDER","BOCHALEMA"]
["NORTE DE SANTANDER","BUCARASICA"]
["NORTE DE SANTANDER","CÁCOTA"]
["NORTE DE SANTANDER","CÁCHIRA"]
["NORTE DE SANTANDER","CHINÁCOTA"]
["NORTE DE SANTANDER","CHITAGÁ"]
["NORTE DE SANTANDER","CONVENCIÓN"]
["NORTE DE SANTANDER","CUCUTILLA"]
["NORTE DE SANTANDER","DURANIA"]
["NORTE DE SANTANDER","EL CARMEN"]
["NORTE DE SANTANDER","EL TARRA"]
["NORTE DE SANTANDER","EL ZULIA"]
["NORTE DE SANTANDER","GRAMALOTE"]
["NORTE DE SANTANDER","HACARÍ"]
["NORTE DE SANTANDER","HERRÁN"]
["NORTE DE SANTANDER","LABATECA"]
["NORTE DE SANTANDER","LA ESPERANZA"]
["NORTE DE SANTANDER","LA PLAYA"]
["NORTE DE SANTANDER","LOS PATIOS"]
["NORTE DE SANTANDER","LOURDES"]
["NORTE DE SANTANDER","MUTISCUA"]
["NORTE DE SANTANDER","OCAÑA"]
["NORTE DE SANTANDER","PAMPLONA"]
["NORTE DE SANTANDER","PAMPLONITA"]
["NORTE DE SANTANDER","PUERTO SANTANDER"]
["NORTE DE SANTANDER","RAGONVALIA"]
["NORTE DE SANTANDER","SALAZAR"]
["NORTE DE SANTANDER","SAN CALIXTO"]
["NORTE DE SANTANDER","SAN CAYETANO"]
["NORTE DE SANTANDER","SANTIAGO"]
["NORTE DE SANTANDER","SARDINATA"]
["NORTE DE SANTANDER","SILOS"]
["NORTE DE SANTANDER","TEORAMA"]
["NORTE DE SANTANDER","TIBÚ"]
["NORTE DE SANTANDER","TOLEDO"]
["NORTE DE SANTANDER","VILLA CARO"]
["NORTE DE SANTANDER","VILLA DEL ROSARIO"]
["QUINDÍO","ARMENIA"]
["QUINDÍO","BUENAVISTA"]
["QUINDÍO","CALARCÁ"]
["QUINDÍO","CIRCASIA"]
["QUINDÍO","CÓRDOBA"]
["QUINDÍO","FILANDIA"]
["QUINDÍO","GÉNOVA"]
["QUINDÍO","LA TEBAIDA"]
["QUINDÍO","MONTENEGRO"]
["QUINDÍO","PIJAO"]
["QUINDÍO","QUIMBAYA"]
["QUINDÍO","SALENTO"]
["RISARALDA","PEREIRA"]
["RISARALDA","APÍA"]
["RISARALDA","BALBOA"]
["RISARALDA","BELÉN DE UMBRÍA"]
["RISARALDA","DOSQUEBRADAS"]
["RISARALDA","GUÁTICA"]
["RISARALDA","LA CELIA"]
["RISARALDA","LA VIRGINIA"]
["RISARALDA","MARSELLA"]
["RISARALDA","MISTRATÓ"]
["RISARALDA","PUEBLO RICO"]
["RISARALDA","QUINCHÍA"]
["RISARALDA","SANTA ROSA DE CABAL"]
["RISARALDA","SANTUARIO"]
["SANTANDER","BUCARAMANGA"]
["SANTANDER","AGUADA"]
["SANTANDER","ALBANIA"]
["SANTANDER","ARATOCA"]
["SANTANDER","BARBOSA"]
["SANTANDER","BARICHARA"]
["SANTANDER","BARRANCABERMEJA"]
["SANTANDER","BETULIA"]
["SANTANDER","BOLÍVAR"]
["SANTANDER","CABRERA"]
["SANTANDER","CALIFORNIA"]
["SANTANDER","CAPITANEJO"]
["SANTANDER","CARCASÍ"]
["SANTANDER","CEPITÁ"]
["SANTANDER","CERRITO"]
["SANTANDER","CHARALÁ"]
["SANTANDER","CHARTA"]
["SANTANDER","CHIMA"]
["SANTANDER","CHIPATÁ"]
["SANTANDER","CIMITARRA"]
["SANTANDER","CONCEPCIÓN"]
["SANTANDER","CONFINES"]
["SANTANDER","CONTRATACIÓN"]
["SANTANDER","COROMORO"]
["SANTANDER","CURITÍ"]
["SANTANDER","EL CARMEN DE CHUCURÍ"]
["SANTANDER","EL GUACAMAYO"]
["SANTANDER","EL PEÑÓN"]
["SANTANDER","EL PLAYÓN"]
["SANTANDER","ENCINO"]
["SANTANDER","ENCISO"]
["SANTANDER","FLORIÁN"]
["SANTANDER","FLORIDABLANCA"]
["SANTANDER","GALÁN"]
["SANTANDER","GÁMBITA"]
["SANTANDER","GIRÓN"]
["SANTANDER","GUACA"]
["SANTANDER","GUADALUPE"]
["SANTANDER","GUAPOTÁ"]
["SANTANDER","GUAVATÁ"]
["SANTANDER","GÜEPSA"]
["SANTANDER","HATO"]
["SANTANDER","JESÚS MARÍA"]
["SANTANDER","JORDÁN"]
["SANTANDER","LA BELLEZA"]
["SANTANDER","LANDÁZURI"]
["SANTANDER","LA PAZ"]
["SANTANDER","LEBRIJA"]
["SANTANDER","LOS SANTOS"]
["SANTANDER","MACARAVITA"]
["SANTANDER","MÁLAGA"]
["SANTANDER","MATANZA"]
["SANTANDER","MOGOTES"]
["SANTANDER","MOLAGAVITA"]
["SANTANDER","OCAMONTE"]
["SANTANDER","OIBA"]
["SANTANDER","ONZAGA"]
["SANTANDER","PALMAR"]
["SANTANDER","PALMAS DEL SOCORRO"]
["SANTANDER","PÁRAMO"]
["SANTANDER","PIEDECUESTA"]
["SANTANDER","PINCHOTE"]
["SANTANDER","PUENTE NACIONAL"]
["SANTANDER","PUERTO PARRA"]
["SANTANDER","PUERTO WILCHES"]
["SANTANDER","RIONEGRO"]
["SANTANDER","SABANA DE TORRES"]
["SANTANDER","SAN ANDRÉS"]
["SANTANDER","SAN BENITO"]
["SANTANDER","SAN GIL"]
["SANTANDER","SAN JOAQUÍN"]
["SANTANDER","SAN JOSÉ DE MIRANDA"]
["SANTANDER","SAN MIGUEL"]
["SANTANDER","SAN VICENTE DE CHUCURÍ"]
["SANTANDER","SANTA BÁRBARA"]
["SANTANDER","SANTA HELENA DEL OPÓN"]
["SANTANDER","SIMACOTA"]
["SANTANDER","SOCORRO"]
["SANTANDER","SUAITA"]
["SANTANDER","SUCRE"]
["SANTANDER","SURATÁ"]
["SANTANDER","TONA"]
["SANTANDER","VALLE DE SAN JOSÉ"]
["SANTANDER","VÉLEZ"]
["SANTANDER","VETAS"]
["SANTANDER","VILLANUEVA"]
["SANTANDER","ZAPATOCA"]
["SUCRE","SINCELEJO"]
["SUCRE","BUENAVISTA"]
["SUCRE","CAIMITO"]
["SUCRE","COLOSÓ"]
["SUCRE","COROZAL"]
["SUCRE","COVEÑAS"]
["SUCRE","CHALÁN"]
["SUCRE","EL ROBLE"]
["SUCRE","GALERAS"]
["SUCRE","GUARANDA"]
["SUCRE","LA UNIÓN"]
["SUCRE","LOS PALMITOS"]
["SUCRE","MAJAGUAL"]
["SUCRE","MORROA"]
["SUCRE","OVEJAS"]
["SUCRE","PALMITO"]
["SUCRE","SAMPUÉS"]
["SUCRE","SAN BENITO ABAD"]
["SUCRE","SAN JUAN DE BETULIA"]
["SUCRE","SAN MARCOS"]
["SUCRE","SAN ONOFRE"]
["SUCRE","SAN PEDRO"]
["SUCRE","SAN LUIS DE SINCÉ"]
["SUCRE","SUCRE"]
["SUCRE","SANTIAGO DE TOLÚ"]
["SUCRE","SAN JOSÉ DE TOLUVIEJO"]
["TOLIMA","IBAGUÉ"]
["TOLIMA","ALPUJARRA"]
["TOLIMA","ALVARADO"]
["TOLIMA","AMBALEMA"]
["TOLIMA","ANZOÁTEGUI"]
["TOLIMA","ARMERO"]
["TOLIMA","ATACO"]
["TOLIMA","CAJAMARCA"]
["TOLIMA","CARMEN DE APICALÁ"]
["TOLIMA","CASABIANCA"]
["TOLIMA","CHAPARRAL"]
["TOLIMA","COELLO"]
["TOLIMA","COYAIMA"]
["TOLIMA","CUNDAY"]
["TOLIMA","DOLORES"]
["TOLIMA","ESPINAL"]
["TOLIMA","FALAN"]
["TOLIMA","FLANDES"]
["TOLIMA","FRESNO"]
["TOLIMA","GUAMO"]
["TOLIMA","HERVEO"]
["TOLIMA","HONDA"]
["TOLIMA","ICONONZO"]
["TOLIMA","LÉRIDA"]
["TOLIMA","LÍBANO"]
["TOLIMA","SAN SEBASTIÁN DE MARIQUITA"]
["TOLIMA","MELGAR"]
["TOLIMA","MURILLO"]
["TOLIMA","NATAGAIMA"]
["TOLIMA","ORTEGA"]
["TOLIMA","PALOCABILDO"]
["TOLIMA","PIEDRAS"]
["TOLIMA","PLANADAS"]
["TOLIMA","PRADO"]
["TOLIMA","PURIFICACIÓN"]
["TOLIMA","RIOBLANCO"]
["TOLIMA","RONCESVALLES"]
["TOLIMA","ROVIRA"]
["TOLIMA","SALDAÑA"]
["TOLIMA","SAN ANTONIO"]
["TOLIMA","SAN LUIS"]
["TOLIMA","SANTA ISABEL"]
["TOLIMA","SUÁREZ"]
["TOLIMA","VALLE DE SAN JUAN"]
["TOLIMA","VENADILLO"]
["TOLIMA","VILLAHERMOSA"]
["TOLIMA","VILLARRICA"]
["VALLE DEL CAUCA","CALI"]
["VALLE DEL CAUCA","ALCALÁ"]
["VALLE DEL CAUCA","ANDALUCÍA"]
["VALLE DEL CAUCA","ANSERMANUEVO"]
["VALLE DEL CAUCA","ARGELIA"]
["VALLE DEL CAUCA","BOLÍVAR"]
["VALLE DEL CAUCA","BUENAVENTURA"]
["VALLE DEL CAUCA","GUADALAJARA DE BUGA"]
["VALLE DEL CAUCA","BUGALAGRANDE"]
["VALLE DEL CAUCA","CAICEDONIA"]
["VALLE DEL CAUCA","CALIMA"]
["VALLE DEL CAUCA","CANDELARIA"]
["VALLE DEL CAUCA","CARTAGO"]
["VALLE DEL CAUCA","DAGUA"]
["VALLE DEL CAUCA","EL ÁGUILA"]
["VALLE DEL CAUCA","EL CAIRO"]
["VALLE DEL CAUCA","EL CERRITO"]
["VALLE DEL CAUCA","EL DOVIO"]
["VALLE DEL CAUCA","FLORIDA"]
["VALLE DEL CAUCA","GINEBRA"]
["VALLE DEL CAUCA","GUACARÍ"]
["VALLE DEL CAUCA","JAMUNDÍ"]
["VALLE DEL CAUCA","LA CUMBRE"]
["VALLE DEL CAUCA","LA UNIÓN"]
["VALLE DEL CAUCA","LA VICTORIA"]
["VALLE DEL CAUCA","OBANDO"]
["VALLE DEL CAUCA","PALMIRA"]
["VALLE DEL CAUCA","PRADERA"]
["VALLE DEL CAUCA","RESTREPO"]
["VALLE DEL CAUCA","RIOFRÍO"]
["VALLE DEL CAUCA","ROLDANILLO"]
["VALLE DEL CAUCA","SAN PEDRO"]
["VALLE DEL CAUCA","SEVILLA"]
["VALLE DEL CAUCA","TORO"]
["VALLE DEL CAUCA","TRUJILLO"]
["VALLE DEL CAUCA","TULUÁ"]
["VALLE DEL CAUCA","ULLOA"]
["VALLE DEL CAUCA","VERSALLES"]
["VALLE DEL CAUCA","VIJES"]
["VALLE DEL CAUCA","YOTOCO"]
["VALLE DEL CAUCA","YUMBO"]
["VALLE DEL CAUCA","ZARZAL"]
["ARAUCA","ARAUCA"]
["ARAUCA","ARAUQUITA"]
["ARAUCA","CRAVO NORTE"]
["ARAUCA","FORTUL"]
["ARAUCA","PUERTO RONDÓN"]
["ARAUCA","SARAVENA"]
["ARAUCA","TAME"]
["CASANARE","YOPAL"]
["CASANARE","AGUAZUL"]
["CASANARE","CHÁMEZA"]
["CASANARE","HATO COROZAL"]
["CASANARE","LA SALINA"]
["CASANARE","MANÍ"]
["CASANARE","MONTERREY"]
["CASANARE","NUNCHÍA"]
["CASANARE","OROCUÉ"]
["CASANARE","PAZ DE ARIPORO"]
["CASANARE","PORE"]
["CASANARE","RECETOR"]
["CASANARE","SABANALARGA"]
["CASANARE","SÁCAMA"]
["CASANARE","SAN LUIS DE PALENQUE"]
["CASANARE","TÁMARA"]
["CASANARE","TAURAMENA"]
["CASANARE","TRINIDAD"]
["CASANARE","VILLANUEVA"]
["PUTUMAYO","MOCOA"]
["PUTUMAYO","COLÓN"]
["PUTUMAYO","ORITO"]
["PUTUMAYO","PUERTO ASÍS"]
["PUTUMAYO","PUERTO CAICEDO"]
["PUTUMAYO","PUERTO GUZMÁN"]
["PUTUMAYO","PUERTO LEGUÍZAMO"]
["PUTUMAYO","SIBUNDOY"]
["PUTUMAYO","SAN FRANCISCO"]
["PUTUMAYO","SAN MIGUEL"]
["PUTUMAYO","SANTIAGO"]
["PUTUMAYO","VALLE DEL GUAMUEZ"]
["PUTUMAYO","VILLAGARZÓN"]
["AMAZONAS","LETICIA"]
["AMAZONAS","EL ENCANTO"]
["AMAZONAS","LA CHORRERA"]
["AMAZONAS","LA PEDRERA"]
["AMAZONAS","LA VICTORIA"]
["AMAZONAS","MIRITÍ - PARANÁ"]
["AMAZONAS","PUERTO ALEGRÍA"]
["AMAZONAS","PUERTO ARICA"]
["AMAZONAS","PUERTO NARIÑO"]
["AMAZONAS","PUERTO SANTANDER"]
["AMAZONAS","TARAPACÁ"]
["GUAINÍA","INÍRIDA"]
["GUAINÍA","BARRANCOMINAS"]
["GUAINÍA","SAN FELIPE"]
["GUAINÍA","PUERTO COLOMBIA"]
["GUAINÍA","LA GUADALUPE"]
["GUAINÍA","CACAHUAL"]
["GUAINÍA","PANA PANA"]
["GUAINÍA","MORICHAL"]
["GUAVIARE","SAN JOSÉ DEL GUAVIARE"]
["GUAVIARE","CALAMAR"]
["GUAVIARE","EL RETORNO"]
["GUAVIARE","MIRAFLORES"]
["VAUPÉS","MITÚ"]
["VAUPÉS","CARURÚ"]
["VAUPÉS","PACOA"]
["VAUPÉS","TARAIRA"]
["VAUPÉS","PAPUNAHUA"]
["VAUPÉS","YAVARATÉ"]
["VICHADA","PUERTO CARREÑO"]
["VICHADA","LA PRIMAVERA"]
["VICHADA","SANTA ROSALÍA"]
["VICHADA","CUMARIBO"]